Service,Expense Subtype,Merchant Name,Expense Invoice Date,Total Expense
DAY CENTRES,Financial Services,CASH ADVANCE FEE,02/01/2017,7.38
DAY CENTRES,Financial Services,CASH ADVANCE FEE,02/01/2017,7.08
DAY CENTRES,Financial Services,CASH ADVANCE FEE,02/01/2017,7.08
NEIGHBOURHOODS,Use of Public Transport,LUL TICKET MACHINE,03/01/2017,50.00
LIBRARIES & ARCHIVE,Education-Library Books,Amazon UK Marketplace,04/01/2017,2.81
LIBRARIES & ARCHIVE,Education-Library Books,Amazon UK Marketplace,04/01/2017,-3.23
LIBRARIES & ARCHIVE,Education-Library Books,Amazon UK Marketplace,04/01/2017,12.72
LIBRARIES & ARCHIVE,Education-Library Books,Amazon UK Marketplace,04/01/2017,13.28
LIBRARIES & ARCHIVE,Education-Other,WWW.ERS-ONLINE.CO.UK,04/01/2017,482.76
LIBRARIES & ARCHIVE,Education-Library Books,Amazon UK Marketplace,04/01/2017,2.81
BALANCE SHEET,VAT,FAST KEY SERVICES LIMI,05/01/2017,1.13
BALANCE SHEET,VAT,WWW.VERSAPAK.CO.UK,05/01/2017,18.02
BALANCE SHEET,VAT,FOLDINGTABL,05/01/2017,6.66
BALANCE SHEET,VAT,PS+P LTD,05/01/2017,9.81
QUALITY ASSURANCE & PERFORMANCE,Legal Services-General Support,GRO HM PASSPORT OFFICE,05/01/2017,37.00
QUALITY ASSURANCE & PERFORMANCE,Legal Services-General Support,GRO HM PASSPORT OFFICE,05/01/2017,9.25
QUALITY ASSURANCE & PERFORMANCE,Legal Services-General Support,NATIONALITY DIRECTORAT,05/01/2017,198.00
QUALITY ASSURANCE & PERFORMANCE,Travel/Subsistence,DIAL-A-FLIGHT,05/01/2017,255.63
QUALITY ASSURANCE & PERFORMANCE,Travel/Subsistence,DIAL-A-FLIGHT,05/01/2017,922.81
QUALITY ASSURANCE & PERFORMANCE,Travel/Subsistence,OYSTER AUTOTOPUP,05/01/2017,40.00
QUALITY ASSURANCE & PERFORMANCE,Travel/Subsistence,TRAINLINE,05/01/2017,144.53
QUALITY ASSURANCE & PERFORMANCE,Travel/Subsistence,TRAINLINE,05/01/2017,137.19
QUALITY ASSURANCE & PERFORMANCE,Travel/Subsistence,WLY*COMPLETESAVE.CO.UK,05/01/2017,-15.00
QUALITY ASSURANCE & PERFORMANCE,Travel/Subsistence,WLY*MYTIMEREWARDSWL.UK,05/01/2017,1.00
YOUTH OFFENDING SERVICE,Domestic Goods-Other,WWW.VERSAPAK.CO.UK,05/01/2017,90.09
YOUTH OFFENDING SERVICE,Furniture-Other,FAST KEY SERVICES LIMI,05/01/2017,5.63
LIBRARIES & ARCHIVE,Catering Food & Drink,SAINSBURYS S/MKTS,05/01/2017,9.10
REVENUE & BENEFITS,Legal Services-Other,HMCOURTS-SERVICE.G,05/01/2017,"7,956.00"
PROCUREMENT,Education-Supplies,PS+P LTD,05/01/2017,49.07
NEIGHBOURHOODS,Domestic Goods-Commercial,FOLDINGTABL,05/01/2017,33.29
SCHOOL & EDUCATION IMPROVEMENT SERVICE,IT Software-Customised,PAYPAL *HIGHERMAPPI,06/01/2017,324.00
HUMAN RESOURCES & ORGANISATIONAL DEVELOPMENT,Financial Services,UKBA5579138490,06/01/2017,"1,476.00"
POLICY & COMMUNICATIONS,Catering Food & Drink,FIRST CHOICE FRUIT & P,06/01/2017,414.30
DAY CENTRES,Financial Services,SAINSBURYS CASH,10/01/2017,200.00
OTHER - ADULTS,Accommodation,PARK PLAZA WESTMINSTER BR,10/01/2017,"1,002.00"
OTHER - ADULTS,Accommodation,PARK PLAZA WESTMINSTER BR,10/01/2017,100.00
BALANCE SHEET,VAT,ACRE LANE TIMBER LTD,10/01/2017,41.57
BALANCE SHEET,VAT,TRANSNATIONAL CORPORAT,10/01/2017,36.52
BALANCE SHEET,VAT,CURRYS ONLINE,10/01/2017,126.50
BALANCE SHEET,VAT,IKEA ONLINE,10/01/2017,38.28
BALANCE SHEET,VAT,WORLDSTORES LTD,10/01/2017,95.66
BALANCE SHEET,VAT,WWW.JETTEC.COM,10/01/2017,5.39
CHILDREN LOOKED AFTER,Domestic Goods-Other,ARGOS RETAIL GROUP,10/01/2017,139.99
CHILDREN LOOKED AFTER,Domestic Goods-Other,ARGOS RETAIL GROUP,10/01/2017,61.96
CHILDREN LOOKED AFTER,Domestic Goods-Other,ARGOS RETAIL GROUP,10/01/2017,78.97
CHILDREN LOOKED AFTER,Domestic Goods-Other,CURRYS ONLINE,10/01/2017,632.47
CHILDREN LOOKED AFTER,Furniture-Domestic Furniture,IKEA ONLINE,10/01/2017,191.42
CHILDREN LOOKED AFTER,Furniture-Domestic Furniture,WORLDSTORES LTD,10/01/2017,478.31
LIBRARIES & ARCHIVE,Education-Supplies,WWW.JETTEC.COM,10/01/2017,26.95
NEIGHBOURHOODS,Building-Timber,ACRE LANE TIMBER LTD,10/01/2017,207.87
NEIGHBOURHOODS,Organised Activities,TRANSNATIONAL CORPORAT,10/01/2017,146.06
DAY CENTRES,Financial Services,CASH ADVANCE FEE,11/01/2017,5.90
OTHER - ADULTS,Banquet & Catering,WWW.EVENTSUPPLIES.CO.U,11/01/2017,164.16
OTHER - ADULTS,Catering Food & Drink,MARKS&SPENCER PLC,11/01/2017,156.50
OTHER - ADULTS,Catering Food & Drink,MARKS&SPENCER PLC,11/01/2017,30.00
OTHER - ADULTS,Catering Food & Drink,TESCO STORES 5999,11/01/2017,59.64
OTHER - ADULTS,Domestic Goods-Other,Amazon UK Marketplace,11/01/2017,16.86
OTHER - ADULTS,Furniture-Soft Furnishings,Amazon UK Marketplace,11/01/2017,23.90
BALANCE SHEET,VAT,AO RETAIL LIMITED,11/01/2017,116.32
CHILDREN LOOKED AFTER,Domestic Goods-Other,AO RETAIL LIMITED,11/01/2017,581.66
QUALITY ASSURANCE & PERFORMANCE,Accommodation,PREMIER INN 44536865,11/01/2017,76.50
QUALITY ASSURANCE & PERFORMANCE,Education-Library Books,Amazon UK Marketplace,11/01/2017,38.95
QUALITY ASSURANCE & PERFORMANCE,Financial Services,GRO HM PASSPORT OFFICE,11/01/2017,9.25
QUALITY ASSURANCE & PERFORMANCE,Travel/Subsistence,OYSTER AUTOTOPUP,11/01/2017,40.00
QUALITY ASSURANCE & PERFORMANCE,Travel/Subsistence,OYSTER BUS AUTOTOP,11/01/2017,40.00
QUALITY ASSURANCE & PERFORMANCE,Travel/Subsistence,TRAINLINE,11/01/2017,35.09
QUALITY ASSURANCE & PERFORMANCE,Travel/Subsistence,TRAINLINE,11/01/2017,87.11
QUALITY ASSURANCE & PERFORMANCE,Travel/Subsistence,TRAINLINE,11/01/2017,265.40
FINANCIAL PLANNING AND MANAGEMENT,Travel/Subsistence,OYSTER AUTOTOPUP,11/01/2017,20.00
FINANCIAL PLANNING AND MANAGEMENT,Travel/Subsistence,OYSTER AUTOTOPUP,11/01/2017,20.00
FINANCIAL PLANNING AND MANAGEMENT,Food/refreshment - meetings,POUNDLAND LTD 1203,11/01/2017,3.05
FINANCIAL PLANNING AND MANAGEMENT,Food/refreshment - meetings,SAINSBURY'S SMKT,11/01/2017,19.85
INTERNAL AUDIT,Travel/Subsistence,OYSTER BUS AUTOTOP,11/01/2017,40.00
MENTAL HEALTH,Accommodation,TRAVELODGE GB0000,12/01/2017,"1,153.54"
BALANCE SHEET,VAT,TFL ROAD CHARGE,12/01/2017,0.00
BALANCE SHEET,VAT,SECOM PLC,12/01/2017,70.08
BALANCE SHEET,VAT,123 REG R/T,12/01/2017,3.00
BALANCE SHEET,VAT,AMAZON MKTPLACE PMTS,12/01/2017,0.00
BALANCE SHEET,VAT,APMP,12/01/2017,0.00
BALANCE SHEET,VAT,EMAPSITE.COM LTD,12/01/2017,5.20
BALANCE SHEET,VAT,FAST KEY SERVICES LIMI,12/01/2017,4.36
BALANCE SHEET,VAT,HOOTSUITE MEDIA INC.,12/01/2017,0.00
BALANCE SHEET,VAT,HOOTSUITE MEDIA INC.,12/01/2017,0.00
BALANCE SHEET,VAT,PANTHEON,12/01/2017,0.00
BALANCE SHEET,VAT,TRAINLINE,12/01/2017,0.00
BALANCE SHEET,VAT,TRAVELODGE GB0000,12/01/2017,230.71
BALANCE SHEET,VAT,AO RETAIL LIMITED,12/01/2017,153.65
BALANCE SHEET,VAT,WAYFAIR STORES LIM,12/01/2017,19.16
CHILDREN LOOKED AFTER,Facilities-Market Research,WAYFAIR STORES LIM,12/01/2017,95.80
CHILDREN LOOKED AFTER,Furniture-Domestic Furniture,WORLDSTORES LTD,12/01/2017,323.98
CHILDREN LOOKED AFTER,Domestic Goods-Other,AO RETAIL LIMITED,12/01/2017,768.32
CHILDREN LOOKED AFTER,Furniture-Domestic Furniture,IKEA ONLINE,12/01/2017,63.00
CHILDREN LOOKED AFTER,Furniture-Domestic Furniture,MATTRESSMAN LTD,12/01/2017,209.00
CHILDREN LOOKED AFTER,Financial Services-Grants,WWW.CORAM.ORG.UK,12/01/2017,138.50
LIBRARIES & ARCHIVE,Education-Library Books,PAYPAL *ROYALHOUSES,12/01/2017,38.00
LIBRARIES & ARCHIVE,Education-Library Books,Amazon UK Retail,12/01/2017,16.48
LIBRARIES & ARCHIVE,Education-Library Books,Amazon UK Marketplace,12/01/2017,9.14
LIBRARIES & ARCHIVE,Education-Library Books,Amazon UK Marketplace,12/01/2017,2.28
LIBRARIES & ARCHIVE,Education-Library Books,Amazon UK Marketplace,12/01/2017,15.45
LIBRARIES & ARCHIVE,Education-Library Books,Amazon UK Marketplace,12/01/2017,2.20
LIBRARIES & ARCHIVE,Education-Library Books,Amazon UK Marketplace,12/01/2017,41.56
LIBRARIES & ARCHIVE,Education-Library Books,Amazon UK Marketplace,12/01/2017,83.29
LIBRARIES & ARCHIVE,Education-Other,www.hannecke.de,12/01/2017,614.31
CORPORATE AFFAIRS,Legal Services-Other,ROYAL COURT OF JUS,12/01/2017,155.00
CORPORATE AFFAIRS,Legal Services-Other,ROYAL COURT OF JUS,12/01/2017,528.00
CORPORATE AFFAIRS,Travel/Subsistence,LUL TICKET MACHINE,12/01/2017,50.00
CORPORATE AFFAIRS,Travel/Subsistence,LUL TICKET MACHINE,12/01/2017,100.00
CORPORATE AFFAIRS,Travel/Subsistence,NEW SOUTHERN RAILW,12/01/2017,70.40
POLICY & COMMUNICATIONS,IT Services,AMAZON MKTPLACE PMTS,12/01/2017,144.11
POLICY & COMMUNICATIONS,IT Services,EMAPSITE.COM LTD,12/01/2017,25.98
POLICY & COMMUNICATIONS,Travel/Subsistence,TRAINLINE,12/01/2017,29.53
POLICY & COMMUNICATIONS,Books/Publications/Resources,APMP,12/01/2017,64.15
POLICY & COMMUNICATIONS,IT Services,123 REG R/T,12/01/2017,14.99
POLICY & COMMUNICATIONS,IT Services,HOOTSUITE MEDIA INC.,12/01/2017,5.90
POLICY & COMMUNICATIONS,IT Services,HOOTSUITE MEDIA INC.,12/01/2017,6.15
POLICY & COMMUNICATIONS,IT Services,PANTHEON,12/01/2017,20.84
POLICY & COMMUNICATIONS,Stationery,FAST KEY SERVICES LIMI,12/01/2017,21.80
NEIGHBOURHOODS,Travel/Subsistence,TFL ROAD CHARGE,12/01/2017,11.50
HOUSING MANAGEMENT SERVICES,Building-Others,SECOM PLC,12/01/2017,350.42
BALANCE SHEET,VAT,PREMIER SHEDS,13/01/2017,27.77
BALANCE SHEET,VAT,ARGOS,13/01/2017,0.00
BALANCE SHEET,VAT,ARGOS,13/01/2017,5.00
BALANCE SHEET,VAT,WLR STORE,13/01/2017,0.59
BALANCE SHEET,VAT,STREATHAM S.STN FS150,13/01/2017,1.25
EARLY HELP,Books/Publications/Resources,WLR STORE,13/01/2017,52.90
YOUTH OFFENDING SERVICE,Domestic Goods-Other,ARGOS,13/01/2017,24.99
YOUTH OFFENDING SERVICE,Domestic Goods-Other,ARGOS,13/01/2017,24.98
YOUTH OFFENDING SERVICE,Public Transport,BRIXTONHILL EXPRESS,13/01/2017,275.00
YOUTH OFFENDING SERVICE,Public Transport,BRIXTONHILL EXPRESS,13/01/2017,50.00
YOUTH OFFENDING SERVICE,Public Transport,EXPRESS NEWS,13/01/2017,50.00
LIBRARIES & ARCHIVE,Books/Publications/Resources,SAINSBURYS CASH,13/01/2017,150.00
PROCUREMENT,Education-Other,WWW.CIPS.ORG,13/01/2017,99.96
POLICY & COMMUNICATIONS,Financial Services-Grants,THE POPPY APPEAL,13/01/2017,595.00
NEIGHBOURHOODS,Building-Timber,PREMIER SHEDS,13/01/2017,138.86
NEIGHBOURHOODS,Building-Timber,PREMIER SHEDS,13/01/2017,178.93
NEIGHBOURHOODS,Vehicle Fuel,PREMIER SHEDS,13/01/2017,44.73
HOUSING MANAGEMENT SERVICES,Catering Food & Drink,STREATHAM S.STN FS150,13/01/2017,6.25
BALANCE SHEET,VAT,PORTERS SANDWICH,15/01/2017,20.67
BALANCE SHEET,VAT,WWW.INSIDEHG.CO.UK R/T,15/01/2017,10.75
LIBRARIES & ARCHIVE,Education-Library Books,Amazon UK Marketplace,15/01/2017,22.26
HOUSING MANAGEMENT SERVICES,Catering Food & Drink,PORTERS SANDWICH,15/01/2017,103.33
HOUSING MANAGEMENT SERVICES,Facilities-Market Research,WWW.INSIDEHG.CO.UK R/T,15/01/2017,53.75
MENTAL HEALTH,Taxi Fares,WWW.ADDISONLEE.COM,16/01/2017,23.10
CHILDREN LOOKED AFTER,Domestic Goods-Other,ARGOS RETAIL GROUP,16/01/2017,39.99
CHILDREN LOOKED AFTER,Domestic Goods-Other,ARGOS RETAIL GROUP,16/01/2017,73.93
EARLY HELP,Books/Publications/Resources,BRIXTON RECREATION CTR,16/01/2017,82.40
LIBRARIES & ARCHIVE,Books/Publications/Resources,CASH ADVANCE FEE,16/01/2017,4.43
LIBRARIES & ARCHIVE,Education-Library Books,Amazon UK Marketplace,16/01/2017,3.68
BALANCE SHEET,VAT,FORTRESS MASTER LOCKSMITH,17/01/2017,1.78
BALANCE SHEET,VAT,SCREWFIX DIRECT,17/01/2017,33.23
BALANCE SHEET,VAT,WICKES BUILDING,17/01/2017,12.70
BALANCE SHEET,VAT,SAINSBURYS S/MKTS,17/01/2017,0.33
EARLY HELP,Books/Publications/Resources,Amazon UK Marketplace,17/01/2017,79.99
NEIGHBOURHOODS,Building-General,WICKES BUILDING,17/01/2017,63.53
NEIGHBOURHOODS,Building-Others,FORTRESS MASTER LOCKSMITH,17/01/2017,8.92
NEIGHBOURHOODS,Sports Equipment,SCREWFIX DIRECT,17/01/2017,166.67
HOUSING MANAGEMENT SERVICES,Stationery,SAINSBURYS S/MKTS,17/01/2017,1.66
BALANCE SHEET,VAT,WH SMITH,18/01/2017,7.95
FINANCIAL PLANNING AND MANAGEMENT,Use of Public Transport,LUL TICKET MACHINE,18/01/2017,10.00
FINANCIAL PLANNING AND MANAGEMENT,Use of Public Transport,LUL TICKET MACHINE,18/01/2017,5.00
INTERNAL AUDIT,Financial Services,GRO HM PASSPORT OFFICE,18/01/2017,0.00
INTERNAL AUDIT,Financial Services,GRO HM PASSPORT OFFICE,18/01/2017,18.50
INTERNAL AUDIT,Financial Services,REGISTRAR GENERAL'S DEPAR,18/01/2017,92.69
INTERNAL AUDIT,Travel/Subsistence,NCP PARKPASS ONLINE,18/01/2017,40.00
INTERNAL AUDIT,Travel/Subsistence,TRAINLINE,18/01/2017,57.73
HOUSING MANAGEMENT SERVICES,Catering Food & Drink,WH SMITH,18/01/2017,39.76
OTHER - ADULTS,Catering Food & Drink,TESCO STORES 5999,19/01/2017,66.14
OTHER - ADULTS,Domestic Goods-Other,Amazon UK Marketplace,19/01/2017,21.25
OTHER - ADULTS,Education-Arts/Crafts,Amazon UK Marketplace,19/01/2017,77.66
OTHER - ADULTS,Education-Other,TESCO-Seller_IST_1_2401,19/01/2017,298.95
BALANCE SHEET,VAT,PREMIER SHEDS,19/01/2017,44.73
BALANCE SHEET,VAT,WICKES,19/01/2017,9.47
BALANCE SHEET,VAT,Amazon UK Marketplace,19/01/2017,0.00
BALANCE SHEET,VAT,EB *APMP FOUNDATION WO,19/01/2017,89.77
BALANCE SHEET,VAT,PANTHEON,19/01/2017,0.00
QUALITY ASSURANCE & PERFORMANCE,Accommodation,PREMIER INN44513065,19/01/2017,185.98
QUALITY ASSURANCE & PERFORMANCE,Facilities-Market Research,WLY*MYTIMEREWARDSWL.UK,19/01/2017,10.00
QUALITY ASSURANCE & PERFORMANCE,Travel/Subsistence,OYSTER AUTOTOPUP,19/01/2017,40.00
QUALITY ASSURANCE & PERFORMANCE,Travel/Subsistence,OYSTER BUS AUTOTOP,19/01/2017,40.00
QUALITY ASSURANCE & PERFORMANCE,Travel/Subsistence,TRAINLINE,19/01/2017,27.08
QUALITY ASSURANCE & PERFORMANCE,Travel/Subsistence,TRAINLINE,19/01/2017,-20.61
QUALITY ASSURANCE & PERFORMANCE,Travel/Subsistence,TRAINLINE,19/01/2017,121.28
LIBRARIES & ARCHIVE,Education-Library Books,Amazon UK Marketplace,19/01/2017,5.83
LIBRARIES & ARCHIVE,Education-Library Books,Amazon UK Marketplace,19/01/2017,6.29
LIBRARIES & ARCHIVE,Education-Library Books,Amazon UK Marketplace,19/01/2017,33.44
LIBRARIES & ARCHIVE,Education-Library Books,Amazon UK Marketplace,19/01/2017,3.87
LIBRARIES & ARCHIVE,Education-Library Books,Amazon UK Marketplace,19/01/2017,3.26
LIBRARIES & ARCHIVE,Education-Library Books,Amazon UK Retail,19/01/2017,13.00
LIBRARIES & ARCHIVE,Education-Library Books,Amazon UK Retail,19/01/2017,9.95
LIBRARIES & ARCHIVE,Education-Other,WWW.DRINKSTUFF.COM,19/01/2017,-19.99
LIBRARIES & ARCHIVE,Catering Food & Drink,SAINSBURYS S/MKTS,19/01/2017,6.65
FINANCIAL PLANNING AND MANAGEMENT,Domestic Goods-Other,Amazon UK Marketplace,19/01/2017,90.58
FINANCIAL PLANNING AND MANAGEMENT,Healthcare Equipment,WWW.MEDIWORLD.CO.UK,19/01/2017,142.20
FINANCIAL PLANNING AND MANAGEMENT,Healthcare Services,MEDIWORLD LIMITED,19/01/2017,16.50
POLICY & COMMUNICATIONS,Conference Expenses,EB *APMP FOUNDATION WO,19/01/2017,448.87
POLICY & COMMUNICATIONS,IT Services,PANTHEON,19/01/2017,21.01
POLICY & COMMUNICATIONS,Stationery,Amazon UK Marketplace,19/01/2017,38.98
NEIGHBOURHOODS,Building-Timber,PREMIER SHEDS,19/01/2017,178.94
NEIGHBOURHOODS,Building-General,WICKES,19/01/2017,47.33
DAY CENTRES,Financial Services,ROYAL BANK UK /,20/01/2017,400.00
LIBRARIES & ARCHIVE,Travel/Subsistence,OYSTER BUS AUTOTOP,21/01/2017,40.00
INTERNAL AUDIT,Travel/Subsistence,OYSTER AUTOTOPUP,21/01/2017,40.00
CHILDREN LOOKED AFTER,Financial Services,NATIONALITY DIRECTORAT,22/01/2017,936.00
DAY CENTRES,Catering Food & Drink,TESCO STORE 2764,23/01/2017,60.69
DAY CENTRES,Education-Other,PAYPAL *TACPAC,23/01/2017,39.00
DAY CENTRES,Education-Other,THE COUNCIL FOR MUSIC,23/01/2017,23.40
DAY CENTRES,Financial Services,ROYAL BANK UK /,23/01/2017,400.00
BALANCE SHEET,VAT,THE COUNCIL FOR MUSIC,23/01/2017,117.00
BALANCE SHEET,VAT,CURRYS ONLINE,23/01/2017,152.00
CHILDREN LOOKED AFTER,Domestic Goods-Other,CURRYS ONLINE,23/01/2017,759.97
CHILDREN LOOKED AFTER,Furniture-Domestic Furniture,IKEA ONLINE,23/01/2017,445.00
REVENUE & BENEFITS,Travel/Subsistence,LONDON & SOUTH EAS,23/01/2017,38.60
BUSINESS TRANSFORMATION,IT Services,RipeNCCCom,23/01/2017,"1,036.19"
POLICY & COMMUNICATIONS,Travel/Subsistence,TRAINLINE,23/01/2017,25.70
DAY CENTRES,Financial Services,CASH ADVANCE FEE,24/01/2017,11.80
DAY CENTRES,Financial Services,CASH ADVANCE FEE,24/01/2017,11.80
BALANCE SHEET,VAT,AO RETAIL LIMITED,24/01/2017,55.49
BALANCE SHEET,VAT,WWW.BEDS.CO.UK,24/01/2017,54.00
BALANCE SHEET,VAT,WWW.FLOORINGSUPPLIES.C,24/01/2017,33.41
BALANCE SHEET,VAT,TESCO STORES-2143,24/01/2017,0.00
CHILDREN LOOKED AFTER,Building-Floors,WWW.FLOORINGSUPPLIES.C,24/01/2017,167.07
CHILDREN LOOKED AFTER,Furniture-Domestic Furniture,WWW.BEDS.CO.UK,24/01/2017,245.00
CHILDREN LOOKED AFTER,Domestic Goods-Other,AO RETAIL LIMITED,24/01/2017,277.50
LIBRARIES & ARCHIVE,Catering Food & Drink,LIDL UK,24/01/2017,6.79
CHIEF EXECUTIVE'S OFFICE,Catering Food & Drink,TESCO STORES-2143,24/01/2017,16.00
HOUSING MANAGEMENT SERVICES,Use of Public Transport,LUL TICKET MACHINE,24/01/2017,50.00
DAY CENTRES,Travel/Subsistence,OYSTER BUS AUTOTOP,25/01/2017,20.00
BALANCE SHEET,VAT,LIDL UK,25/01/2017,1.37
BALANCE SHEET,VAT,IKEA ONLINE,25/01/2017,51.17
BALANCE SHEET,VAT,ARGOS RETAIL GROUP,25/01/2017,14.99
BALANCE SHEET,VAT,WWW.DIRECTMOBILITYONLINE,25/01/2017,12.00
CHILDREN LOOKED AFTER,Facilities-Storage,BIG YELLOW SELF STORAG,25/01/2017,584.73
CHILDREN LOOKED AFTER,Domestic Goods-Other,AO RETAIL LIMITED,25/01/2017,276.99
CHILDREN LOOKED AFTER,Domestic Goods-Other,ARGOS RETAIL GROUP,25/01/2017,804.25
CHILDREN LOOKED AFTER,Furniture-Domestic Furniture,IKEA ONLINE,25/01/2017,255.83
LIBRARIES & ARCHIVE,Education-Library Books,Amazon UK Marketplace,25/01/2017,26.55
LIBRARIES & ARCHIVE,Education-Library Books,Amazon UK Marketplace,25/01/2017,22.79
LIBRARIES & ARCHIVE,Education-Library Books,Amazon UK Marketplace,25/01/2017,2.81
LIBRARIES & ARCHIVE,Education-Library Books,Amazon UK Marketplace,25/01/2017,27.04
LIBRARIES & ARCHIVE,Education-Library Books,Amazon UK Retail,25/01/2017,3.95
CORPORATE AFFAIRS,Food/refreshment - meetings,SAINSBURYS S/MKTS,25/01/2017,5.40
FINANCIAL PLANNING AND MANAGEMENT,Domestic Goods-Other,ARGOS RETAIL GROUP,25/01/2017,208.94
FINANCIAL PLANNING AND MANAGEMENT,Domestic Goods-Other,ARGOS RETAIL GROUP,25/01/2017,824.86
FINANCIAL PLANNING AND MANAGEMENT,Travel/Subsistence,OYSTER AUTOTOPUP,25/01/2017,20.00
INTERNAL AUDIT,Education-Other,ISACA,25/01/2017,845.39
ENVIRONMENT,Domestic Goods-Other,ARGOS,25/01/2017,210.00
NEIGHBOURHOODS,Catering Food & Drink,MARKS&SPENCER PLC SACA,25/01/2017,32.95
NEIGHBOURHOODS,Catering Food & Drink,SAINSBURYS S/MKTS,25/01/2017,14.35
NEIGHBOURHOODS,Domestic Goods-Other,ARGOS RETAIL GROUP,25/01/2017,60.00
NEIGHBOURHOODS,Domestic Goods-Other,WWW.DIRECTMOBILITYONLINE,25/01/2017,37.94
NEIGHBOURHOODS,Travel/Subsistence,LUL TICKET MACHINE,25/01/2017,10.00
NEIGHBOURHOODS,Domestic Goods-Other,WWW.DIRECTMOBILITYONLINE,25/01/2017,37.94
HOUSING MANAGEMENT SERVICES,Catering Food & Drink,LIDL UK,25/01/2017,6.87
SENIOR MANAGEMENT - ADULTS & PUBLIC HEALTH,Stationery,Amazon UK Marketplace,26/01/2017,1.53
SENIOR MANAGEMENT - ADULTS & PUBLIC HEALTH,Taxi Fares,WWW.ADDISONLEE.COM,26/01/2017,9.05
BALANCE SHEET,VAT,CURRYS ONLINE,26/01/2017,189.99
BALANCE SHEET,VAT,ENTERPRISE EVENTS LTD,26/01/2017,39.00
CHILDREN LOOKED AFTER,Domestic Goods-Other,ARGOS RETAIL GROUP,26/01/2017,206.94
CHILDREN LOOKED AFTER,Domestic Goods-Other,ARGOS RETAIL GROUP,26/01/2017,16.94
CHILDREN LOOKED AFTER,Domestic Goods-Other,ASDA GEORGE COM LEEDS,26/01/2017,39.95
CHILDREN LOOKED AFTER,Domestic Goods-Other,CURRYS ONLINE,26/01/2017,-0.99
QUALITY ASSURANCE & PERFORMANCE,Travel/Subsistence,OYSTER AUTOTOPUP,26/01/2017,40.00
QUALITY ASSURANCE & PERFORMANCE,Travel/Subsistence,OYSTER BUS AUTOTOP,26/01/2017,80.00
QUALITY ASSURANCE & PERFORMANCE,Travel/Subsistence,TRAINLINE,26/01/2017,93.84
QUALITY ASSURANCE & PERFORMANCE,Travel/Subsistence,TRAINLINE,26/01/2017,61.46
QUALITY ASSURANCE & PERFORMANCE,Travel/Subsistence,TRAINLINE,26/01/2017,34.08
QUALITY ASSURANCE & PERFORMANCE,Travel/Subsistence,TRAINLINE,26/01/2017,74.97
REVENUE & BENEFITS,Conference Expenses,ENTERPRISE EVENTS LTD,26/01/2017,195.00
REVENUE & BENEFITS,Legal Services-Other,ONESOURCE ENFORCEMENT,26/01/2017,"3,244.18"
REVENUE & BENEFITS,Travel/Subsistence,TRAINLINE,26/01/2017,49.98
REVENUE & BENEFITS,Travel/Subsistence,TRAINLINE,26/01/2017,49.98
CORPORATE AFFAIRS,Use of Public Transport,OYSTER RENEW WEB,26/01/2017,25.00
PUBLIC HEALTH - ADULTS,Conference Expenses,WWW.CONSERVATIVEPART.C,27/01/2017,220.00
PUBLIC HEALTH - ADULTS,Healthcare Equipment,FREEDOMS SHOP,27/01/2017,999.03
BALANCE SHEET,VAT,FORTRESS MASTER LOCKSMITH,27/01/2017,14.37
BALANCE SHEET,VAT,CAPITAL MEDIA NEWSPAPE,27/01/2017,-60.00
LIBRARIES & ARCHIVE,Education-Other,CAPITAL MEDIA NEWSPAPE,27/01/2017,300.00
LIBRARIES & ARCHIVE,Education-Other,CAPITAL MEDIA NEWSPAPE,27/01/2017,120.00
NEIGHBOURHOODS,Building-Others,FORTRESS MASTER LOCKSMITH,27/01/2017,71.83
CHILDREN SAFEGUARDING & ASSESSMENTS,Facilities-Printing,Amazon UK Retail,29/01/2017,159.88
LIBRARIES & ARCHIVE,Domestic Goods-Other,Amazon UK Marketplace,29/01/2017,16.97
INTERNAL AUDIT,Travel/Subsistence,OYSTER AUTOTOPUP,29/01/2017,20.00
INTERNAL AUDIT,Travel/Subsistence,OYSTER AUTOTOPUP,29/01/2017,40.00
INTERNAL AUDIT,Travel/Subsistence,TFL ROAD CHARGE,29/01/2017,11.50
BALANCE SHEET,VAT,FORTRESS MASTER LOCKSMITH,30/01/2017,8.25
FINANCIAL PLANNING AND MANAGEMENT,Domestic Goods-Other,ARGOS RETAIL GROUP,30/01/2017,223.93
FINANCIAL PLANNING AND MANAGEMENT,Financial Services,LAND REGISTRY,30/01/2017,3.00
FINANCIAL PLANNING AND MANAGEMENT,Financial Services,LAND REGISTRY,30/01/2017,3.00
FINANCIAL PLANNING AND MANAGEMENT,Financial Services,LAND REGISTRY,30/01/2017,3.00
FINANCIAL PLANNING AND MANAGEMENT,Financial Services,LAND REGISTRY,30/01/2017,3.00
NEIGHBOURHOODS,Building-Others,FORTRESS MASTER LOCKSMITH,30/01/2017,41.25
NEIGHBOURHOODS,Use of Public Transport,LUL TICKET MACHINE,30/01/2017,50.00
NEIGHBOURHOODS,Use of Public Transport,LUL TICKET MACHINE,30/01/2017,25.00
NEIGHBOURHOODS,Use of Public Transport,LUL TICKET MACHINE,30/01/2017,50.00
NEIGHBOURHOODS,Use of Public Transport,LUL TICKET MACHINE,30/01/2017,25.00
MENTAL HEALTH,Accommodation,TRAVELODGE GB0000,31/01/2017,994.79
MENTAL HEALTH,Financial Services,ATM BARCLAYS BANK PLC,31/01/2017,60.00
MENTAL HEALTH,Financial Services-Banking,CASH ADVANCE FEE,31/01/2017,2.95
MENTAL HEALTH,Legal Services-Other,HMCOURTS-SERVICE.G,31/01/2017,40.00
MENTAL HEALTH,Legal Services-Other,HMCOURTS-SERVICE.G,31/01/2017,40.00
MENTAL HEALTH,Legal Services-Other,HMCOURTS-SERVICE.G,31/01/2017,40.00
MENTAL HEALTH,Legal Services-Other,HMCOURTS-SERVICE.G,31/01/2017,60.00
MENTAL HEALTH,Legal Services-Other,HMCOURTS-SERVICE.G,31/01/2017,20.00
MENTAL HEALTH,Legal Services-Other,HMCOURTS-SERVICE.G,31/01/2017,60.00
MENTAL HEALTH,Legal Services-Other,HMCOURTS-SERVICE.G,31/01/2017,60.00
MENTAL HEALTH,Legal Services-Other,HMCOURTS-SERVICE.G,31/01/2017,20.00
MENTAL HEALTH,Taxi Fares,WWW.ADDISONLEE.COM,31/01/2017,120.20
MENTAL HEALTH,Travel/Subsistence,LONDON & SOUTH EAS,31/01/2017,62.20
MENTAL HEALTH,Travel/Subsistence,LONDON & SOUTH EAS,31/01/2017,26.30
MENTAL HEALTH,Travel/Subsistence,OYSTER AUTOTOPUP,31/01/2017,20.00
MENTAL HEALTH,Travel/Subsistence,OYSTER AUTOTOPUP,31/01/2017,20.00
OTHER - ADULTS,Catering Food & Drink,TESCO STORES 5999,31/01/2017,88.89
OTHER - ADULTS,Domestic Goods-Other,AMAZON UK RETAIL AMAZON.C,31/01/2017,25.48
OTHER - ADULTS,Domestic Goods-Other,AMAZON UK RETAIL AMAZON.C,31/01/2017,25.46
OTHER - ADULTS,Education-Library Books,Amazon UK Marketplace,31/01/2017,9.49
OTHER - ADULTS,Education-Library Books,Amazon UK Marketplace,31/01/2017,3.90
OTHER - ADULTS,Healthcare Equipment,WWW.OXFORDMEDICAL.CO.U,31/01/2017,75.30
BALANCE SHEET,VAT,SCREWFIX DIRECT,31/01/2017,7.77
BALANCE SHEET,VAT,AMAZON UK RETAIL AMAZON.C,31/01/2017,5.08
BALANCE SHEET,VAT,LIDL UK,31/01/2017,1.10
BALANCE SHEET,VAT,MARKS&SPENCER PLC SACA,31/01/2017,10.00
BALANCE SHEET,VAT,ODEON,31/01/2017,16.66
BALANCE SHEET,VAT,ODEON,31/01/2017,16.66
BALANCE SHEET,VAT,ODEON,31/01/2017,15.25
BALANCE SHEET,VAT,POUNDLAND LTD,31/01/2017,2.33
BALANCE SHEET,VAT,POUNDLAND LTD,31/01/2017,6.20
BALANCE SHEET,VAT,POUNDLAND LTD 1203,31/01/2017,7.38
BALANCE SHEET,VAT,POUNDLAND LTD 1203,31/01/2017,4.36
BALANCE SHEET,VAT,SAINSBURY'S SMKT,31/01/2017,16.66
BALANCE SHEET,VAT,SAINSBURY'S SMKT,31/01/2017,86.00
BALANCE SHEET,VAT,SAINSBURYS,31/01/2017,2.15
BALANCE SHEET,VAT,SAINSBURYS S/MKTS,31/01/2017,0.33
BALANCE SHEET,VAT,THE RITZY,31/01/2017,5.00
BALANCE SHEET,VAT,TK MAXX,31/01/2017,16.66
BALANCE SHEET,VAT,TRAVELODGE GB0000,31/01/2017,198.96
BALANCE SHEET,VAT,WWW.ADDISONLEE.COM,31/01/2017,24.04
YOUTH OFFENDING SERVICE,Arts & Leisure Services,ODEON,31/01/2017,83.34
YOUTH OFFENDING SERVICE,Arts & Leisure Services,ODEON,31/01/2017,83.34
YOUTH OFFENDING SERVICE,Arts & Leisure Services,ODEON,31/01/2017,76.30
YOUTH OFFENDING SERVICE,Arts & Leisure Services,THE RITZY,31/01/2017,25.00
YOUTH OFFENDING SERVICE,Catering Food & Drink,LIDL UK,31/01/2017,5.53
YOUTH OFFENDING SERVICE,Catering Food & Drink,MARKS&SPENCER PLC SACA,31/01/2017,50.00
YOUTH OFFENDING SERVICE,Catering Food & Drink,POUNDLAND LTD,31/01/2017,11.67
YOUTH OFFENDING SERVICE,Catering Food & Drink,POUNDLAND LTD 1203,31/01/2017,37.92
YOUTH OFFENDING SERVICE,Catering Food & Drink,POUNDLAND LTD 1203,31/01/2017,21.84
YOUTH OFFENDING SERVICE,Catering Food & Drink,SAINSBURY'S SMKT,31/01/2017,83.34
YOUTH OFFENDING SERVICE,Catering Food & Drink,SAINSBURY'S SMKT,31/01/2017,174.00
YOUTH OFFENDING SERVICE,Catering Food & Drink,SAINSBURYS,31/01/2017,10.80
YOUTH OFFENDING SERVICE,Catering Food & Drink,SAINSBURYS S/MKTS,31/01/2017,1.67
YOUTH OFFENDING SERVICE,Domestic Goods-Other,POUNDLAND LTD,31/01/2017,31.00
YOUTH OFFENDING SERVICE,Education-Arts/Crafts,TK MAXX,31/01/2017,83.34
CORPORATE AFFAIRS,Legal Services-General Support,CCBCOFFICE,31/01/2017,255.00
CORPORATE AFFAIRS,Legal Services-General Support,ROYAL COURT OF JUS,31/01/2017,155.00
CORPORATE AFFAIRS,Travel/Subsistence,LUL TICKET MACHINE,31/01/2017,50.00
NEIGHBOURHOODS,Building-Electrical,SCREWFIX DIRECT,31/01/2017,38.90
NEIGHBOURHOODS,Books/Publications/Resources,AMAZON UK RETAIL AMAZON.C,31/01/2017,43.44
NEIGHBOURHOODS,Books/Publications/Resources,Amazon UK Marketplace,31/01/2017,17.20
NEIGHBOURHOODS,Books/Publications/Resources,VISTAPR*VistaPrint.uk,31/01/2017,548.76
NEIGHBOURHOODS,Conference Expenses,WWW.THEWESLEY.CO.UK,31/01/2017,182.00
SENIOR MANAGEMENT - ADULTS & PUBLIC HEALTH,Domestic Goods-Other,Amazon UK Retail,01/02/2017,34.99
SENIOR MANAGEMENT - ADULTS & PUBLIC HEALTH,Taxi Fares,WWW.ADDISONLEE.COM,01/02/2017,32.60
BALANCE SHEET,VAT,PESTFIX,01/02/2017,12.27
BALANCE SHEET,VAT,SCREWFIX DIRECT,01/02/2017,19.99
BALANCE SHEET,VAT,Amazon UK Retail,01/02/2017,6.99
CHILDREN SAFEGUARDING & ASSESSMENTS,Accommodation,SW ESTATES LETTING,01/02/2017,250.00
CHILDREN SAFEGUARDING & ASSESSMENTS,Banquet & Catering,WWW.PRESTIGEFLOWERS.CO.U,01/02/2017,25.79
CHILDREN SAFEGUARDING & ASSESSMENTS,Books/Publications/Resources,PARTRIDGE & PRINT,01/02/2017,378.00
CHILDREN SAFEGUARDING & ASSESSMENTS,Clothing-Uniforms,KRYOLAN,01/02/2017,130.00
CHILDREN SAFEGUARDING & ASSESSMENTS,Clothing-Uniforms,WWW.GEAR-UK.COM,01/02/2017,42.00
CHILDREN SAFEGUARDING & ASSESSMENTS,Facilities-Storage,SAFESTORE LIMITED,01/02/2017,110.62
CHILDREN SAFEGUARDING & ASSESSMENTS,Furniture-Domestic Furniture,AO RETAIL LIMITED,01/02/2017,279.00
CHILDREN SAFEGUARDING & ASSESSMENTS,Furniture-Domestic Furniture,ARGOS DIRECT,01/02/2017,-97.93
CHILDREN SAFEGUARDING & ASSESSMENTS,Furniture-Domestic Furniture,ARGOS RETAIL GROUP,01/02/2017,201.84
CHILDREN SAFEGUARDING & ASSESSMENTS,Furniture-Domestic Furniture,ARGOS RETAIL GROUP,01/02/2017,249.99
CHILDREN SAFEGUARDING & ASSESSMENTS,Furniture-Domestic Furniture,CARPETRIGHT,01/02/2017,385.09
CHILDREN SAFEGUARDING & ASSESSMENTS,Furniture-Domestic Furniture,CONNECTIONFLOORINGLTD,01/02/2017,101.40
CHILDREN SAFEGUARDING & ASSESSMENTS,Furniture-Domestic Furniture,CONNECTIONFLOORINGLTD,01/02/2017,300.35
CHILDREN SAFEGUARDING & ASSESSMENTS,Furniture-Domestic Furniture,CURRYS ONLINE,01/02/2017,814.96
CHILDREN SAFEGUARDING & ASSESSMENTS,Furniture-Domestic Furniture,CURRYS ONLINE,01/02/2017,879.96
CHILDREN SAFEGUARDING & ASSESSMENTS,Furniture-Domestic Furniture,CURRYS ONLINE,01/02/2017,758.97
CHILDREN SAFEGUARDING & ASSESSMENTS,Furniture-Domestic Furniture,IKEA ONLINE,01/02/2017,630.00
CHILDREN SAFEGUARDING & ASSESSMENTS,Furniture-Domestic Furniture,TOOTING CARPETS,01/02/2017,0.00
CHILDREN SAFEGUARDING & ASSESSMENTS,Furniture-Office Furniture,ARGOS RETAIL GROUP,01/02/2017,97.93
CHILDREN SAFEGUARDING & ASSESSMENTS,Legal Services-General Support,GRO HM PASSPORT OFFICE,01/02/2017,9.25
CORPORATE AFFAIRS,Stationery,Amazon UK Marketplace,01/02/2017,50.99
FINANCIAL PLANNING AND MANAGEMENT,Use of Public Transport,LUL TICKET MACHINE,01/02/2017,20.00
NEIGHBOURHOODS,Building-Electrical,SCREWFIX DIRECT,01/02/2017,99.97
NEIGHBOURHOODS,Building-Others,PESTFIX,01/02/2017,61.33
"WELFARE, EMPLOYMENT & SKILLS",Books/Publications/Resources,ADOBE EXPORTPDF SUB,01/02/2017,19.33
"WELFARE, EMPLOYMENT & SKILLS",Books/Publications/Resources,CITB,01/02/2017,35.00
"WELFARE, EMPLOYMENT & SKILLS",Books/Publications/Resources,CITB,01/02/2017,30.00
"WELFARE, EMPLOYMENT & SKILLS",Books/Publications/Resources,H&M,01/02/2017,105.00
"WELFARE, EMPLOYMENT & SKILLS",Books/Publications/Resources,JIB,01/02/2017,85.22
"WELFARE, EMPLOYMENT & SKILLS",Books/Publications/Resources,THE POST OFFICE,01/02/2017,6.45
"WELFARE, EMPLOYMENT & SKILLS",Books/Publications/Resources,VUE*NCS CITB HS&E TEST,01/02/2017,19.50
"WELFARE, EMPLOYMENT & SKILLS",Books/Publications/Resources,VUE*NCS CITB HS&E TEST,01/02/2017,19.50
"WELFARE, EMPLOYMENT & SKILLS",Books/Publications/Resources,VUE*NCS CITB HS&E TEST,01/02/2017,19.50
"WELFARE, EMPLOYMENT & SKILLS",Books/Publications/Resources,VUE*NCS CITB HS&E TEST,01/02/2017,19.50
"WELFARE, EMPLOYMENT & SKILLS",Stationery,THE POST OFFICE,01/02/2017,6.45
"WELFARE, EMPLOYMENT & SKILLS",Subsistence: Lunch Allowance,SAINSBURY'S SMKT,01/02/2017,10.00
"WELFARE, EMPLOYMENT & SKILLS",Use of Public Transport,BRIX CENTRAL STOP,01/02/2017,10.60
"WELFARE, EMPLOYMENT & SKILLS",Use of Public Transport,OYSTER ISSUE WEB,01/02/2017,153.70
"WELFARE, EMPLOYMENT & SKILLS",Use of Public Transport,OYSTER RENEW WEB,01/02/2017,124.50
"WELFARE, EMPLOYMENT & SKILLS",Use of Public Transport,OYSTER RENEW WEB,01/02/2017,29.30
"WELFARE, EMPLOYMENT & SKILLS",Use of Public Transport,OYSTER RENEW WEB,01/02/2017,-24.30
"WELFARE, EMPLOYMENT & SKILLS",Use of Public Transport,OYSTER RENEW WEB,01/02/2017,-5.00
"WELFARE, EMPLOYMENT & SKILLS",Use of Public Transport,OYSTER RENEW WEB,01/02/2017,64.80
"WELFARE, EMPLOYMENT & SKILLS",Use of Public Transport,OYSTER RENEW WEB,01/02/2017,32.40
"WELFARE, EMPLOYMENT & SKILLS",Use of Public Transport,OYSTER RENEW WEB,01/02/2017,32.40
"WELFARE, EMPLOYMENT & SKILLS",Use of Public Transport,OYSTER RENEW WEB,01/02/2017,32.40
"WELFARE, EMPLOYMENT & SKILLS",Use of Public Transport,OYSTER RENEW WEB,01/02/2017,38.00
"WELFARE, EMPLOYMENT & SKILLS",Use of Public Transport,OYSTER RENEW WEB,01/02/2017,-32.40
"WELFARE, EMPLOYMENT & SKILLS",Use of Public Transport,OYSTER RENEW WEB,01/02/2017,186.80
"WELFARE, EMPLOYMENT & SKILLS",Use of Public Transport,OYSTER RENEW WEB,01/02/2017,93.40
"WELFARE, EMPLOYMENT & SKILLS",Use of Public Transport,OYSTER RENEW WEB,01/02/2017,148.70
"WELFARE, EMPLOYMENT & SKILLS",Use of Public Transport,OYSTER RENEW WEB,01/02/2017,148.70
"WELFARE, EMPLOYMENT & SKILLS",Use of Public Transport,OYSTER RENEW WEB,01/02/2017,10.00
"WELFARE, EMPLOYMENT & SKILLS",Use of Public Transport,OYSTER RENEW WEB,01/02/2017,10.00
"WELFARE, EMPLOYMENT & SKILLS",Use of Public Transport,OYSTER RENEW WEB,01/02/2017,38.70
HOUSING MANAGEMENT SERVICES,Use of Public Transport,LUL TICKET MACHINE,01/02/2017,200.00
BALANCE SHEET,VAT,AMAZON UK RETAIL AMAZON.C,02/02/2017,34.68
BALANCE SHEET,VAT,WWW.3WMLTD.COM,02/02/2017,13.50
BALANCE SHEET,VAT,123 REG R/T,02/02/2017,3.00
BALANCE SHEET,VAT,NATIONBUILDER,02/02/2017,0.00
BALANCE SHEET,VAT,NATIONBUILDER,02/02/2017,0.00
BALANCE SHEET,VAT,NATIONBUILDER,02/02/2017,0.00
BALANCE SHEET,VAT,NATIONBUILDER,02/02/2017,0.00
BALANCE SHEET,VAT,TRAINLINE,02/02/2017,0.00
YOUTH OFFENDING SERVICE,Furniture-Office Furniture,AMAZON UK RETAIL AMAZON.C,02/02/2017,173.44
YOUTH OFFENDING SERVICE,Stationery,WWW.3WMLTD.COM,02/02/2017,67.50
LIBRARIES & ARCHIVE,Education-Library Books,AMAZON UK RETAIL AMAZON.C,02/02/2017,18.44
LIBRARIES & ARCHIVE,Education-Library Books,Amazon UK Marketplace,02/02/2017,12.91
LIBRARIES & ARCHIVE,Education-Library Books,Amazon UK Marketplace,02/02/2017,22.07
LIBRARIES & ARCHIVE,Education-Library Books,Amazon UK Marketplace,02/02/2017,2.81
POLICY & COMMUNICATIONS,IT Services,123 REG R/T,02/02/2017,14.99
POLICY & COMMUNICATIONS,IT Services,NATIONBUILDER,02/02/2017,183.38
POLICY & COMMUNICATIONS,IT Services,NATIONBUILDER,02/02/2017,48.34
POLICY & COMMUNICATIONS,IT Services,NATIONBUILDER,02/02/2017,49.79
POLICY & COMMUNICATIONS,IT Services,NATIONBUILDER,02/02/2017,49.71
POLICY & COMMUNICATIONS,Travel/Subsistence,TRAINLINE,02/02/2017,75.17
NEIGHBOURHOODS,Books/Publications/Resources,Amazon Prime,02/02/2017,79.00
NEIGHBOURHOODS,Books/Publications/Resources,Amazon Prime,02/02/2017,-79.00
PUBLIC HEALTH - ADULTS,Conference Expenses,PREMIER INN44521685,03/02/2017,506.96
BALANCE SHEET,VAT,CLAPHAM PICTUREHOU,03/02/2017,60.00
EARLY HELP,Books/Publications/Resources,LOVE2SHOP.CO.UK,03/02/2017,103.50
EARLY HELP,Books/Publications/Resources,LOVE2SHOP.CO.UK,03/02/2017,203.50
EARLY HELP,Books/Publications/Resources,LOVE2SHOP.CO.UK,03/02/2017,203.50
LIBRARIES & ARCHIVE,Books/Publications/Resources,SAINSBURYS CASH,03/02/2017,150.00
SPECIAL EDUCATIONAL NEEDS,Domestic Goods-Other,ARGOS,03/02/2017,43.99
ENVIRONMENT,Arts & Leisure Services,CLAPHAM PICTUREHOU,03/02/2017,300.00
DAY CENTRES,Catering Food & Drink,TESCO STORE 2764,06/02/2017,45.05
DAY CENTRES,Catering Food & Drink,TESCO STORE 2764,06/02/2017,24.96
DAY CENTRES,Financial Services,SAINSBURYS CASH,06/02/2017,200.00
BALANCE SHEET,VAT,TESCO STORES 4342,06/02/2017,4.67
CHILDREN SAFEGUARDING & ASSESSMENTS,Vehicle Hire,ANYTIME REMOVALS,06/02/2017,119.01
LIBRARIES & ARCHIVE,Books/Publications/Resources,CASH ADVANCE FEE,06/02/2017,4.43
CORPORATE AFFAIRS,Stationery,SAINSBURYS,06/02/2017,10.00
CORPORATE AFFAIRS,Use of Public Transport,EAST MIDLANDS TRAINS,06/02/2017,31.35
POLICY & COMMUNICATIONS,IT Hardware,FASTER PAYMENT RECEIVED,06/02/2017,-856.00
NEIGHBOURHOODS,Use of Public Transport,LUL TICKET MACHINE,06/02/2017,50.00
HOUSING MANAGEMENT SERVICES,Catering Equipment,TESCO STORES 4342,06/02/2017,23.33
DAY CENTRES,Financial Services,CASH ADVANCE FEE,07/02/2017,5.90
DAY CENTRES,Travel/Subsistence,BRIXTON FOOD & WINE -,07/02/2017,200.00
YOUTH OFFENDING SERVICE,Books/Publications/Resources,LOVE2SHOP.CO.UK,07/02/2017,100.00
DAY CENTRES,Financial Services,ATM BARCLAYS BANK PLC,08/02/2017,400.00
BALANCE SHEET,VAT,LBB TOUCHTONE,08/02/2017,23.93
BALANCE SHEET,Personal,Amazon UK Marketplace,08/02/2017,-11.70
BALANCE SHEET,VAT,Amazon UK Marketplace,08/02/2017,188.00
BALANCE SHEET,VAT,AMAZON UK RETAIL AMAZON.C,08/02/2017,4.75
BALANCE SHEET,VAT,AO RETAIL LIMITED,08/02/2017,87.33
BALANCE SHEET,VAT,BUYITDIRECT.CO.UK,08/02/2017,30.00
BALANCE SHEET,VAT,CURRYS ONLINE,08/02/2017,111.50
BALANCE SHEET,VAT,WAYFAIR STORES LIM,08/02/2017,78.21
BALANCE SHEET,VAT,WWW.BEDWAREHOUSEDIRECT,08/02/2017,74.31
CHILDREN LOOKED AFTER,Financial Services,GRO HM PASSPORT OFFICE,08/02/2017,9.25
CHILDREN LOOKED AFTER,Financial Services,GRO HM PASSPORT OFFICE,08/02/2017,18.50
CHILDREN LOOKED AFTER,Building-Floors,ONLINECARPETS.COUK,08/02/2017,136.11
CHILDREN LOOKED AFTER,Domestic Goods-Other,AO RETAIL LIMITED,08/02/2017,436.66
CHILDREN LOOKED AFTER,Domestic Goods-Other,ARGOS RETAIL GROUP,08/02/2017,460.87
CHILDREN LOOKED AFTER,Domestic Goods-Other,ARGOS RETAIL GROUP,08/02/2017,"1,987.85"
CHILDREN LOOKED AFTER,Domestic Goods-Other,BUYITDIRECT.CO.UK,08/02/2017,149.98
CHILDREN LOOKED AFTER,Domestic Goods-Other,CURRYS ONLINE,08/02/2017,557.49
CHILDREN LOOKED AFTER,Facilities-Market Research,WAYFAIR STORES LIM,08/02/2017,391.08
CHILDREN LOOKED AFTER,Furniture-Domestic Furniture,WWW.BEDWAREHOUSEDIRECT,08/02/2017,371.54
CHILDREN SAFEGUARDING & ASSESSMENTS,Financial Services,HM PASSPORT OFFICE,08/02/2017,49.00
CHILDREN SAFEGUARDING & ASSESSMENTS,Financial Services,GRO HM PASSPORT OFFICE,08/02/2017,83.80
CHILDREN SAFEGUARDING & ASSESSMENTS,Domestic Goods-Other,ARGOS RETAIL GROUP,08/02/2017,96.96
LIBRARIES & ARCHIVE,Building-General,FISHER & PAYKEL APPLIA,08/02/2017,123.00
BUSINESS TRANSFORMATION,IT Hardware,Amazon UK Marketplace,08/02/2017,940.00
BUSINESS TRANSFORMATION,IT Hardware,Amazon UK Marketplace,08/02/2017,-11.70
BUSINESS TRANSFORMATION,IT Hardware,AMAZON UK RETAIL AMAZON.C,08/02/2017,24.99
HOUSING MANAGEMENT SERVICES,Building-Others,LBB TOUCHTONE,08/02/2017,119.68
OTHER - ADULTS,Facilities-Printing,GRAFENIA PLC,09/02/2017,146.88
BALANCE SHEET,VAT,B & Q 1009,09/02/2017,5.03
SPECIAL EDUCATIONAL NEEDS,Catering Food & Drink,SAINSBURYS S/MKTS,09/02/2017,17.20
NEIGHBOURHOODS,Building-General,B & Q 1009,09/02/2017,20.11
BALANCE SHEET,VAT,IKEA ONLINE,10/02/2017,30.83
BALANCE SHEET,VAT,WWW.LEADERONLINE.C,10/02/2017,45.15
CHILDREN LOOKED AFTER,Domestic Goods-Other,ARGOS RETAIL GROUP,10/02/2017,43.88
CHILDREN LOOKED AFTER,Financial Services,HM PASSPORT OFFICE,10/02/2017,75.50
CHILDREN LOOKED AFTER,Furniture-Domestic Furniture,IKEA ONLINE,10/02/2017,154.17
CHILDREN LOOKED AFTER,Furniture-Domestic Furniture,MAISONS DU MONDE WEB,10/02/2017,96.94
CHILDREN LOOKED AFTER,Furniture-Domestic Furniture,WWW.LEADERONLINE.C,10/02/2017,225.65
LIBRARIES & ARCHIVE,Education-Library Books,AMAZON UK RETAIL AMAZON.C,10/02/2017,12.94
POLICY & COMMUNICATIONS,Organised Activities,AWARDS OF LONDON,10/02/2017,46.50
BALANCE SHEET,VAT,HOOTSUITE MEDIA INC.,11/02/2017,0.00
POLICY & COMMUNICATIONS,IT Services,HOOTSUITE MEDIA INC.,11/02/2017,5.95
OTHER - ADULTS,Catering Food & Drink,TESCO STORES 5999,13/02/2017,98.06
HUMAN RESOURCES & ORGANISATIONAL DEVELOPMENT,Financial Services,UKBA5396966987,13/02/2017,199.00
BALANCE SHEET,VAT,SCREWFIX DIRECT,14/02/2017,5.83
CHILDREN SAFEGUARDING & ASSESSMENTS,Travel/Subsistence,BRITISH A 1258751365666,14/02/2017,153.44
QUALITY ASSURANCE & PERFORMANCE,Consultancy-Business,ARMOUR LOCK AND SAFE,14/02/2017,10.00
QUALITY ASSURANCE & PERFORMANCE,Facilities-Market Research,WLY*MYTIMEREWARDSWL.UK,14/02/2017,10.00
QUALITY ASSURANCE & PERFORMANCE,Travel/Subsistence,OYSTER AUTOTOPUP,14/02/2017,40.00
QUALITY ASSURANCE & PERFORMANCE,Travel/Subsistence,OYSTER AUTOTOPUP,14/02/2017,40.00
QUALITY ASSURANCE & PERFORMANCE,Travel/Subsistence,OYSTER AUTOTOPUP,14/02/2017,80.00
QUALITY ASSURANCE & PERFORMANCE,Travel/Subsistence,OYSTER AUTOTOPUP,14/02/2017,40.00
QUALITY ASSURANCE & PERFORMANCE,Travel/Subsistence,OYSTER AUTOTOPUP,14/02/2017,40.00
QUALITY ASSURANCE & PERFORMANCE,Travel/Subsistence,OYSTER BUS AUTOTOP,14/02/2017,80.00
QUALITY ASSURANCE & PERFORMANCE,Travel/Subsistence,TRAINLINE,14/02/2017,31.98
QUALITY ASSURANCE & PERFORMANCE,Travel/Subsistence,TRAINLINE,14/02/2017,20.15
FINANCIAL PLANNING AND MANAGEMENT,Domestic Goods-Other,ARGOS RETAIL GROUP,14/02/2017,377.94
FINANCIAL PLANNING AND MANAGEMENT,Use of Public Transport,TRAINLINE,14/02/2017,71.86
NEIGHBOURHOODS,Clothing-Footwear,SCREWFIX DIRECT,14/02/2017,29.16
"PLANNING, TRANSPORT & DEVELOPMENT",Travel/Subsistence,GWR WEBSALES ECOM,14/02/2017,146.60
"PLANNING, TRANSPORT & DEVELOPMENT",Travel/Subsistence,LUL TICKET MACHINE,14/02/2017,50.00
"PLANNING, TRANSPORT & DEVELOPMENT",Travel/Subsistence,LUL TICKET MACHINE,14/02/2017,50.00
"PLANNING, TRANSPORT & DEVELOPMENT",Travel/Subsistence,STAGECOACH SW TRAINS W,14/02/2017,23.50
BALANCE SHEET,VAT,BUYAGIFT PLC,15/02/2017,26.49
BALANCE SHEET,VAT,ODEON,15/02/2017,25.55
BALANCE SHEET,VAT,POUNDLAND LTD,15/02/2017,1.16
BALANCE SHEET,VAT,POUNDLAND LTD 1203,15/02/2017,2.16
BALANCE SHEET,VAT,SAINSBURY'S SMKT,15/02/2017,56.66
BALANCE SHEET,VAT,SAINSBURYS,15/02/2017,20.82
BALANCE SHEET,VAT,SAINSBURYS S/MKTS,15/02/2017,3.60
BALANCE SHEET,VAT,TK MAXX,15/02/2017,16.66
BALANCE SHEET,VAT,SAINSBURYS,15/02/2017,0.00
CHILDREN LOOKED AFTER,Domestic Goods-Other,ARGOS DIRECT,15/02/2017,-456.94
CHILDREN LOOKED AFTER,Domestic Goods-Other,AO RETAIL LIMITED,15/02/2017,-9.99
CHILDREN LOOKED AFTER,Domestic Goods-Other,ARGOS DIRECT,15/02/2017,-16.97
CHILDREN LOOKED AFTER,Financial Services,GRO HM PASSPORT OFFICE,15/02/2017,-18.50
CHILDREN LOOKED AFTER,Domestic Goods-Other,ARGOS DIRECT,15/02/2017,-85.00
CHILDREN LOOKED AFTER,Domestic Goods-Other,ARGOS DIRECT,15/02/2017,-256.93
CHILDREN LOOKED AFTER,Facilities-Market Research,ARGOS DIRECT,15/02/2017,-134.95
CHILDREN LOOKED AFTER,Furniture-Domestic Furniture,WORLDSTORES LTD,15/02/2017,-328.38
YOUTH OFFENDING SERVICE,Arts & Leisure Services,BUYAGIFT PLC,15/02/2017,132.51
YOUTH OFFENDING SERVICE,Arts & Leisure Services,ELEPHANT CASTLE SUPERB,15/02/2017,69.00
YOUTH OFFENDING SERVICE,Arts & Leisure Services,ODEON,15/02/2017,127.85
YOUTH OFFENDING SERVICE,Catering Food & Drink,POUNDLAND LTD,15/02/2017,5.84
YOUTH OFFENDING SERVICE,Catering Food & Drink,POUNDLAND LTD 1203,15/02/2017,10.84
YOUTH OFFENDING SERVICE,Catering Food & Drink,SAINSBURY'S SMKT,15/02/2017,283.34
YOUTH OFFENDING SERVICE,Catering Food & Drink,SAINSBURYS,15/02/2017,104.18
YOUTH OFFENDING SERVICE,Catering Food & Drink,SAINSBURYS S/MKTS,15/02/2017,18.05
YOUTH OFFENDING SERVICE,Education-Arts/Crafts,TK MAXX,15/02/2017,83.34
LIBRARIES & ARCHIVE,Education-Library Books,AMAZON UK RETAIL AMAZON.C,15/02/2017,9.99
LIBRARIES & ARCHIVE,Education-Library Books,Amazon UK Marketplace,15/02/2017,3.89
LIBRARIES & ARCHIVE,Education-Library Books,Amazon UK Marketplace,15/02/2017,5.28
LIBRARIES & ARCHIVE,Education-Library Books,Amazon UK Marketplace,15/02/2017,31.80
LIBRARIES & ARCHIVE,Education-Library Books,Amazon UK Marketplace,15/02/2017,34.87
LIBRARIES & ARCHIVE,Education-Library Books,Amazon UK Marketplace,15/02/2017,14.76
LIBRARIES & ARCHIVE,Education-Library Books,Amazon UK Retail,15/02/2017,10.49
LIBRARIES & ARCHIVE,Education-Library Books,Amazon UK Retail,15/02/2017,19.65
CHIEF EXECUTIVE'S OFFICE,Catering Food & Drink,SAINSBURYS,15/02/2017,24.22
FINANCIAL PLANNING AND MANAGEMENT,Travel/Subsistence,OYSTER AUTOTOPUP,15/02/2017,20.00
FINANCIAL PLANNING AND MANAGEMENT,Travel/Subsistence,OYSTER AUTOTOPUP,15/02/2017,20.00
HOUSING MANAGEMENT SERVICES,Vehicle Maintenance,J.B.W. GROUP LTD,15/02/2017,"1,343.00"
BALANCE SHEET,VAT,HILTON,16/02/2017,19.33
BALANCE SHEET,VAT,FORTRESS MASTER LOCKSMITH,16/02/2017,7.66
BALANCE SHEET,VAT,PLUMB CENTER FFO,16/02/2017,7.65
BALANCE SHEET,VAT,SCREWFIX,16/02/2017,0.40
BALANCE SHEET,VAT,LAMBETH INTERNET PAYM,16/02/2017,2.20
BALANCE SHEET,VAT,LAMBETH INTERNET PAYM,16/02/2017,2.20
QUALITY ASSURANCE & PERFORMANCE,Domestic Goods-Other,Samsonite,16/02/2017,89.00
QUALITY ASSURANCE & PERFORMANCE,Travel/Subsistence,OYSTER AUTOTOPUP,16/02/2017,40.00
QUALITY ASSURANCE & PERFORMANCE,Travel/Subsistence,OYSTER BUS AUTOTOP,16/02/2017,40.00
QUALITY ASSURANCE & PERFORMANCE,Travel/Subsistence,OYSTER BUS AUTOTOP,16/02/2017,80.00
QUALITY ASSURANCE & PERFORMANCE,Travel/Subsistence,TRAINLINE,16/02/2017,21.92
QUALITY ASSURANCE & PERFORMANCE,Travel/Subsistence,TRAINLINE,16/02/2017,104.24
QUALITY ASSURANCE & PERFORMANCE,Travel/Subsistence,TRAINLINE,16/02/2017,134.64
QUALITY ASSURANCE & PERFORMANCE,Travel/Subsistence,TRAINLINE,16/02/2017,20.45
FINANCIAL PLANNING AND MANAGEMENT,Accommodation,HILTON,16/02/2017,96.67
INTERNAL AUDIT,Travel/Subsistence,OYSTER BUS AUTOTOP,16/02/2017,40.00
NEIGHBOURHOODS,Building-Others,FORTRESS MASTER LOCKSMITH,16/02/2017,38.29
NEIGHBOURHOODS,Building-Plumbing,PLUMB CENTER FFO,16/02/2017,38.25
NEIGHBOURHOODS,Clothing-Footwear,SCREWFIX,16/02/2017,1.60
NEIGHBOURHOODS,Stationery,Amazon UK Marketplace,16/02/2017,229.90
NEIGHBOURHOODS,Use of Public Transport,LUL TICKET MACHINE,16/02/2017,120.00
"WELFARE, EMPLOYMENT & SKILLS",Books/Publications/Resources,GIFTVOUCHERSHOP.CO.UK,16/02/2017,400.00
"WELFARE, EMPLOYMENT & SKILLS",Stationery,"Amazon Svcs Europe,SAR",16/02/2017,68.15
"WELFARE, EMPLOYMENT & SKILLS",Stationery,Amazon UK Marketplace,16/02/2017,7.60
"WELFARE, EMPLOYMENT & SKILLS",Stationery,Amazon UK Retail,16/02/2017,61.37
HOUSING MANAGEMENT SERVICES,Legal Services-Other,LAMBETH INTERNET PAYM,16/02/2017,10.00
HOUSING MANAGEMENT SERVICES,Legal Services-Other,LAMBETH INTERNET PAYM,16/02/2017,10.00
BALANCE SHEET,VAT,SCREWFIX DIRECT,17/02/2017,0.00
BALANCE SHEET,VAT,SAINSBURY'S S/MKT,17/02/2017,8.33
BALANCE SHEET,VAT,AO RETAIL LIMITED,17/02/2017,137.16
CHILDREN LOOKED AFTER,Furniture-Domestic Furniture,ARGOS RETAIL GROUP,17/02/2017,12.09
CHILDREN LOOKED AFTER,Legal Services-General Support,WWW.GHANABANK.CO.UK,17/02/2017,184.50
CHILDREN LOOKED AFTER,Furniture-Domestic Furniture,AO RETAIL LIMITED,17/02/2017,685.83
CHILDREN LOOKED AFTER,Furniture-Domestic Furniture,ARGOS RETAIL GROUP,17/02/2017,106.94
CHILDREN LOOKED AFTER,Furniture-Domestic Furniture,ARGOS RETAIL GROUP,17/02/2017,23.93
CHILDREN LOOKED AFTER,Furniture-Domestic Furniture,ARGOS RETAIL GROUP,17/02/2017,345.91
LIBRARIES & ARCHIVE,Domestic Goods-Other,ARGOS LTD,17/02/2017,5.98
NEIGHBOURHOODS,Clothing-Footwear,SCREWFIX DIRECT,17/02/2017,79.98
HOUSING MANAGEMENT SERVICES,Catering Food & Drink,SAINSBURY'S S/MKT,17/02/2017,41.67
FINANCIAL PLANNING AND MANAGEMENT,Use of Public Transport,OYSTER BUS AUTOTOP,18/02/2017,20.00
DAY CENTRES,Catering Food & Drink,TESCO STORE 2764,20/02/2017,44.47
DAY CENTRES,Financial Services,ROYAL BANK UK /,20/02/2017,400.00
BALANCE SHEET,VAT,MYLANDS,20/02/2017,30.67
LIBRARIES & ARCHIVE,Catering Food & Drink,SAINSBURY'S SMKT,20/02/2017,4.45
LIBRARIES & ARCHIVE,Catering Food & Drink,SAINSBURYS S/MKTS,20/02/2017,10.65
LIBRARIES & ARCHIVE,Facilities-Advertising,WH SMITH,20/02/2017,246.45
LIBRARIES & ARCHIVE,Facilities-Advertising,WH SMITH,20/02/2017,251.40
POLICY & COMMUNICATIONS,Catering Food & Drink,TESCO STORES-2143,20/02/2017,5.45
NEIGHBOURHOODS,Building-Paint,MYLANDS,20/02/2017,153.34
DAY CENTRES,Financial Services,CASH ADVANCE FEE,21/02/2017,11.80
MENTAL HEALTH,Travel/Subsistence,VIRGINTRAINSEC SERVCS,21/02/2017,81.70
BALANCE SHEET,VAT,AMAZON UK RETAIL AMAZON.C,21/02/2017,3.70
BALANCE SHEET,VAT,Amazon UK Marketplace,21/02/2017,2.81
BALANCE SHEET,VAT,ACRE LANE TIMBER LTD,21/02/2017,170.76
BALANCE SHEET,VAT,ACRE LANE TIMBER LTD,21/02/2017,32.15
BALANCE SHEET,VAT,WICKES 281,21/02/2017,2.41
BALANCE SHEET,VAT,FAST KEY SERVICES LIMI,21/02/2017,1.21
SCHOOL & EDUCATION IMPROVEMENT SERVICE,Catering Food & Drink,SAINSBURYS S/MKTS,21/02/2017,16.00
CORPORATE AFFAIRS,Legal Services-General Support,WWW.ICO.GOV.UK,21/02/2017,500.00
CORPORATE AFFAIRS,Stationery,AMAZON UK RETAIL AMAZON.C,21/02/2017,18.51
CORPORATE AFFAIRS,Stationery,Amazon UK Marketplace,21/02/2017,14.03
FINANCIAL PLANNING AND MANAGEMENT,Domestic Goods-Other,ARGOS RETAIL GROUP,21/02/2017,63.94
INTERNAL AUDIT,Consultancy-Business,FAST KEY SERVICES LIMI,21/02/2017,6.01
INTERNAL AUDIT,Travel/Subsistence,TFL ROAD CHARGE,21/02/2017,11.50
NEIGHBOURHOODS,Building-Plumbing,WICKES 281,21/02/2017,12.07
NEIGHBOURHOODS,Building-Timber,ACRE LANE TIMBER LTD,21/02/2017,0.00
NEIGHBOURHOODS,Building-Timber,ACRE LANE TIMBER LTD,21/02/2017,160.74
BALANCE SHEET,Personal,HOWARD BROS. (CAMBERWE,22/02/2017,-0.03
BALANCE SHEET,VAT,HOWARD BROS. (CAMBERWE,22/02/2017,61.64
BALANCE SHEET,VAT,HOWARD BROS. (CAMBERWE,22/02/2017,51.31
BALANCE SHEET,VAT,SCREWFIX,22/02/2017,5.67
BALANCE SHEET,VAT,WWW.POSTURITE.CO.UK,22/02/2017,9.99
BALANCE SHEET,VAT,GREYHOUND CARS LTD,22/02/2017,1.17
BALANCE SHEET,VAT,THE PLASTIC BOX COMPANY,22/02/2017,1.89
LIBRARIES & ARCHIVE,Books/Publications/Resources,SAINSBURYS CASH,22/02/2017,160.00
LIBRARIES & ARCHIVE,Education-Library Books,CHILD POVERTY,22/02/2017,71.00
LIBRARIES & ARCHIVE,Education-Supplies,THE PLASTIC BOX COMPANY,22/02/2017,9.46
HOUSING MANAGEMENT SERVICES,Taxi Fares,GREYHOUND CARS LTD,22/02/2017,12.91
HOUSING MANAGEMENT SERVICES,Building-General,HOWARD BROS. (CAMBERWE,22/02/2017,308.22
HOUSING MANAGEMENT SERVICES,Building-General,HOWARD BROS. (CAMBERWE,22/02/2017,256.56
HOUSING MANAGEMENT SERVICES,Building-Timber,SCREWFIX,22/02/2017,28.49
HOUSING MANAGEMENT SERVICES,Consultancy-Other,TVLICENSING.CO.UK,22/02/2017,145.50
HOUSING MANAGEMENT SERVICES,Financial Services,GRO HM PASSPORT OFFICE,22/02/2017,0.00
HOUSING MANAGEMENT SERVICES,Financial Services,GRO HM PASSPORT OFFICE,22/02/2017,9.25
HOUSING MANAGEMENT SERVICES,Financial Services,GRO HM PASSPORT OFFICE,22/02/2017,9.25
HOUSING MANAGEMENT SERVICES,Financial Services,LAMBETH INTERNET PAYM,22/02/2017,10.17
HOUSING MANAGEMENT SERVICES,Furniture-Office Furniture,WWW.POSTURITE.CO.UK,22/02/2017,49.95
HOUSING MANAGEMENT SERVICES,Travel/Subsistence,LUL TICKET MACHINE,22/02/2017,50.00
HOUSING MANAGEMENT SERVICES,Travel/Subsistence,LUL TICKET MACHINE,22/02/2017,120.00
HOUSING MANAGEMENT SERVICES,Travel/Subsistence,LUL TICKET MACHINE,22/02/2017,60.00
BALANCE SHEET,VAT,RAC,23/02/2017,14.65
LIBRARIES & ARCHIVE,Education-Library Books,Amazon UK Marketplace,23/02/2017,2.81
LIBRARIES & ARCHIVE,Education-Library Books,WARNERS PUBLICATIONS PLC,23/02/2017,48.00
LIBRARIES & ARCHIVE,Books/Publications/Resources,CASH ADVANCE FEE,23/02/2017,4.72
LIBRARIES & ARCHIVE,Education-Library Books,Amazon UK Marketplace,23/02/2017,2.81
LIBRARIES & ARCHIVE,Education-Library Books,Amazon UK Marketplace,23/02/2017,5.62
LIBRARIES & ARCHIVE,Education-Library Books,WWWBALHORGUK,23/02/2017,30.00
LIBRARIES & ARCHIVE,Education-Library Books,ECONOMIST SUBSCRIPTION,23/02/2017,145.00
FINANCIAL PLANNING AND MANAGEMENT,Financial Services,LAND REGISTRY,23/02/2017,3.00
FINANCIAL PLANNING AND MANAGEMENT,Financial Services,LAND REGISTRY,23/02/2017,3.00
FINANCIAL PLANNING AND MANAGEMENT,Financial Services,LAND REGISTRY,23/02/2017,9.00
NEIGHBOURHOODS,Banquet & Catering,Amazon UK Marketplace,23/02/2017,100.03
NEIGHBOURHOODS,Building-Timber,B&Q DIRECT,23/02/2017,40.00
NEIGHBOURHOODS,Catering Equipment,Amazon UK Retail,23/02/2017,11.22
NEIGHBOURHOODS,Catering Food & Drink,Amazon UK Retail,23/02/2017,4.99
NEIGHBOURHOODS,Cleaning-Internal,Amazon UK Marketplace,23/02/2017,6.30
NEIGHBOURHOODS,Domestic Goods-Other,Amazon UK Marketplace,23/02/2017,9.87
NEIGHBOURHOODS,Education-Library Books,Amazon UK Marketplace,23/02/2017,10.00
NEIGHBOURHOODS,Facilities-Market Research,Prime Fresh Membership,23/02/2017,-6.99
NEIGHBOURHOODS,Facilities-Printing,Amazon UK Retail,23/02/2017,8.99
NEIGHBOURHOODS,Stationery,AMAZON UK RETAIL AMAZON.C,23/02/2017,7.97
NEIGHBOURHOODS,Stationery,Amazon Prime,23/02/2017,7.99
NEIGHBOURHOODS,Stationery,Amazon UK Marketplace,23/02/2017,3.98
NEIGHBOURHOODS,Stationery,Amazon UK Marketplace,23/02/2017,18.30
NEIGHBOURHOODS,Stationery,Amazon UK Marketplace,23/02/2017,6.90
NEIGHBOURHOODS,Vehicle Maintenance,RAC,23/02/2017,73.28
BALANCE SHEET,VAT,123 REG R/T,24/02/2017,3.00
BALANCE SHEET,VAT,2017 PLANNING TOOLKIT,24/02/2017,0.00
BALANCE SHEET,VAT,EMAP LTD-SUBSCRIPTIONS,24/02/2017,0.00
BALANCE SHEET,VAT,PANTHEON,24/02/2017,0.00
BALANCE SHEET,VAT,PAYPAL *CAPITALMEDI,24/02/2017,0.00
BALANCE SHEET,VAT,Amazon UK Marketplace,24/02/2017,20.78
BALANCE SHEET,VAT,MORLEYS,24/02/2017,2.37
LIBRARIES & ARCHIVE,Education-Other,Amazon UK Marketplace,24/02/2017,103.92
LIBRARIES & ARCHIVE,Education-Other,MARKS&SPENCER PLC SACA,24/02/2017,2.08
LIBRARIES & ARCHIVE,Domestic Goods-Other,MORLEYS,24/02/2017,11.82
SCHOOL & EDUCATION IMPROVEMENT SERVICE,Domestic Goods-Other,AMAZON UK RETAIL AMAZON.C,24/02/2017,12.48
POLICY & COMMUNICATIONS,Books/Publications/Resources,2017 PLANNING TOOLKIT,24/02/2017,39.99
POLICY & COMMUNICATIONS,Books/Publications/Resources,EMAP LTD-SUBSCRIPTIONS,24/02/2017,249.00
POLICY & COMMUNICATIONS,Books/Publications/Resources,PAYPAL *CAPITALMEDI,24/02/2017,36.00
POLICY & COMMUNICATIONS,IT Services,123 REG R/T,24/02/2017,14.99
POLICY & COMMUNICATIONS,IT Services,PANTHEON,24/02/2017,20.78
LIBRARIES & ARCHIVE,Building-Electrical,Amazon UK Marketplace,26/02/2017,9.28
DAY CENTRES,Catering Food & Drink,TESCO STORE 2764,27/02/2017,100.00
DAY CENTRES,Financial Services,ROYAL BANK UK /,27/02/2017,400.00
MENTAL HEALTH,Legal Services-Other,HMCOURTS-SERVICE.G,27/02/2017,20.00
MENTAL HEALTH,Legal Services-Other,HMCOURTS-SERVICE.G,27/02/2017,20.00
MENTAL HEALTH,Legal Services-Other,HMCOURTS-SERVICE.G,27/02/2017,40.00
MENTAL HEALTH,Legal Services-Other,HMCOURTS-SERVICE.G,27/02/2017,60.00
MENTAL HEALTH,Legal Services-Other,HMCOURTS-SERVICE.G,27/02/2017,20.00
MENTAL HEALTH,Legal Services-Other,HMCOURTS-SERVICE.G,27/02/2017,40.00
MENTAL HEALTH,Travel/Subsistence,LONDON & SOUTH EAS,27/02/2017,31.90
MENTAL HEALTH,Travel/Subsistence,OYSTER AUTOTOPUP,27/02/2017,20.00
MENTAL HEALTH,Travel/Subsistence,OYSTER AUTOTOPUP,27/02/2017,20.00
MENTAL HEALTH,Travel/Subsistence,OYSTER BUS AUTOTOP,27/02/2017,20.00
OTHER - ADULTS,Catering Food & Drink,TESCO STORES 5999,27/02/2017,67.19
BALANCE SHEET,VAT,HALFORDS 0716,27/02/2017,8.00
BALANCE SHEET,VAT,TESCO PFS 2161,27/02/2017,7.13
EARLY HELP,Books/Publications/Resources,AMAZON UK RETAIL AMAZON.C,27/02/2017,29.99
EARLY YEARS QUALITY IMPROVEMENT,Financial Services-Grants,PACEY COMMERCIAL SERVI,27/02/2017,981.51
EARLY YEARS QUALITY IMPROVEMENT,Financial Services-Grants,PACEY COMMERCIAL SERVI,27/02/2017,-16.99
LIBRARIES & ARCHIVE,Building-Electrical,Amazon UK Marketplace,27/02/2017,5.98
LIBRARIES & ARCHIVE,Facilities-Advertising,WH SMITH,27/02/2017,264.60
CORPORATE AFFAIRS,Travel/Subsistence,LUL TICKET MACHINE,27/02/2017,50.00
TENANT MANAGEMENT ORGANISATIONS,Vehicle Fuel,HALFORDS 0716,27/02/2017,39.92
TENANT MANAGEMENT ORGANISATIONS,Vehicle Fuel,TESCO PFS 2161,27/02/2017,35.65
DAY CENTRES,Financial Services,CASH ADVANCE FEE,28/02/2017,11.80
DAY CENTRES,Financial Services,CASH ADVANCE FEE,28/02/2017,11.80
BALANCE SHEET,VAT,COMPANYOFCOOKS.COM,28/02/2017,159.55
BALANCE SHEET,VAT,WWW.TRANSPORTTIMES.CO.,28/02/2017,146.38
BALANCE SHEET,Personal,TIME4SLEEP LTD,28/02/2017,-20.49
BALANCE SHEET,VAT,SAFESTORE LIMITED,28/02/2017,15.34
BALANCE SHEET,VAT,TIME4SLEEP LTD,28/02/2017,61.50
BALANCE SHEET,VAT,WAYFAIR STORES LIM,28/02/2017,20.83
CHILDREN LOOKED AFTER,Building-Floors,CONNECTIONFLOORINGLTD,28/02/2017,136.71
CHILDREN LOOKED AFTER,Building-Others,SAFESTORE LIMITED,28/02/2017,95.28
CHILDREN LOOKED AFTER,Furniture-Domestic Furniture,TIME4SLEEP LTD,28/02/2017,307.00
CHILDREN LOOKED AFTER,Furniture-Domestic Furniture,WAYFAIR STORES LIM,28/02/2017,104.16
CHILDREN LOOKED AFTER,Haulage,WWW.COMAPRETHEMANANDTH,28/02/2017,16.77
CHILDREN LOOKED AFTER,Letting Agents,ALLPAY MOTO (CALLPAY/IVR,28/02/2017,"1,263.00"
LIBRARIES & ARCHIVE,Education-Library Books,AMAZON UK RETAIL AMAZON.C,28/02/2017,19.95
LIBRARIES & ARCHIVE,Education-Library Books,AMAZON UK RETAIL AMAZON.C,28/02/2017,8.99
LIBRARIES & ARCHIVE,Education-Library Books,AMAZON UK RETAIL AMAZON.C,28/02/2017,40.97
LIBRARIES & ARCHIVE,Education-Library Books,Amazon UK Marketplace,28/02/2017,25.40
LIBRARIES & ARCHIVE,Education-Library Books,Amazon UK Retail,28/02/2017,29.99
FINANCIAL PLANNING AND MANAGEMENT,Domestic Goods-Other,ARGOS DIRECT,28/02/2017,-224.97
FINANCIAL PLANNING AND MANAGEMENT,Domestic Goods-Other,ARGOS RETAIL GROUP,28/02/2017,224.97
FINANCIAL PLANNING AND MANAGEMENT,Domestic Goods-Other,ARGOS RETAIL GROUP,28/02/2017,328.94
"WELFARE, EMPLOYMENT & SKILLS",Books/Publications/Resources,AMAZON UK RETAIL AMAZON.C,28/02/2017,227.73
"WELFARE, EMPLOYMENT & SKILLS",Books/Publications/Resources,SAINSBURYS S/MKTS,28/02/2017,1.00
"WELFARE, EMPLOYMENT & SKILLS",Subsistence: Lunch Allowance,COSTCUTTER,28/02/2017,5.16
"WELFARE, EMPLOYMENT & SKILLS",Subsistence: Lunch Allowance,SAINSBURYS S/MKTS,28/02/2017,45.25
"WELFARE, EMPLOYMENT & SKILLS",Subsistence: Lunch Allowance,SAINSBURYS STOCKWE,28/02/2017,3.00
"WELFARE, EMPLOYMENT & SKILLS",Use of Public Transport,LONDON MIDLAND WEB,28/02/2017,30.00
"WELFARE, EMPLOYMENT & SKILLS",Use of Public Transport,OYSTER RENEW WEB,28/02/2017,41.20
"WELFARE, EMPLOYMENT & SKILLS",Use of Public Transport,OYSTER RENEW WEB,28/02/2017,-41.20
"WELFARE, EMPLOYMENT & SKILLS",Use of Public Transport,S & V NEWS,28/02/2017,148.70
"PLANNING, TRANSPORT & DEVELOPMENT",Catering Food & Drink,COMPANYOFCOOKS.COM,28/02/2017,797.78
"PLANNING, TRANSPORT & DEVELOPMENT",Consultancy-Business,FORTRESS MASTER LOCKSMITH,28/02/2017,3.50
"PLANNING, TRANSPORT & DEVELOPMENT",Consultancy-Business,WWW.TRANSPORTTIMES.CO.,28/02/2017,731.84
"PLANNING, TRANSPORT & DEVELOPMENT",Travel/Subsistence,OYSTER AUTOTOPUP,28/02/2017,20.00
"PLANNING, TRANSPORT & DEVELOPMENT",Travel/Subsistence,OYSTER AUTOTOPUP,28/02/2017,20.00
"PLANNING, TRANSPORT & DEVELOPMENT",Travel/Subsistence,OYSTER BUS AUTOTOP,28/02/2017,60.00
BALANCE SHEET,VAT,WP-WWW.OYEZFORMSLINK.C,01/03/2017,45.72
LIBRARIES & ARCHIVE,Travel/Subsistence,LONDON & SOUTH EAS,01/03/2017,59.20
REVENUE & BENEFITS,Travel/Subsistence,TRAINLINE,01/03/2017,134.13
CORPORATE AFFAIRS,Catering Food & Drink,MARKS&SPENCER PLC SACA,01/03/2017,34.05
CORPORATE AFFAIRS,Catering Food & Drink,TESCO STORES 5342,01/03/2017,18.21
CORPORATE AFFAIRS,Domestic Goods-Other,POUNDLAND LTD 1203,01/03/2017,5.00
CORPORATE AFFAIRS,Travel/Subsistence,LUL TICKET MACHINE,01/03/2017,50.00
CORPORATE AFFAIRS,Travel/Subsistence,LUL TICKET MACHINE,01/03/2017,50.00
CORPORATE AFFAIRS,Travel/Subsistence,TICKETOFFICESALE,01/03/2017,25.70
INTERNAL AUDIT,Domestic Goods-Other,Amazon UK Marketplace,01/03/2017,34.99
INTERNAL AUDIT,Education-Library Books,Amazon UK Marketplace,01/03/2017,26.99
HOUSING MANAGEMENT SERVICES,Financial Services,GRO HM PASSPORT OFFICE,01/03/2017,9.25
HOUSING MANAGEMENT SERVICES,Horticultural-Seeds & Plants,LOLA FLOWER BOUTIQUE,01/03/2017,25.00
HOUSING MANAGEMENT SERVICES,Stationery,WP-WWW.OYEZFORMSLINK.C,01/03/2017,228.62
BALANCE SHEET,VAT,HIRE INTELLIGENCE,02/03/2017,40.20
BALANCE SHEET,VAT,WWW.BONZABALLOONS.CO.U,02/03/2017,29.61
CHILDREN LOOKED AFTER,Domestic Goods-Other,WWW.BONZABALLOONS.CO.U,02/03/2017,147.99
CHILDREN LOOKED AFTER,Horticultural-Seeds & Plants,DORIS FLORIST,02/03/2017,360.00
CHILDREN LOOKED AFTER,Horticultural-Seeds & Plants,INTERFLORA BRITISH UNI,02/03/2017,74.00
CHILDREN LOOKED AFTER,IT Software,HIRE INTELLIGENCE,02/03/2017,201.00
CHILDREN SAFEGUARDING & ASSESSMENTS,Financial Services,GRO HM PASSPORT OFFICE,02/03/2017,0.00
CHILDREN SAFEGUARDING & ASSESSMENTS,Financial Services,GRO HM PASSPORT OFFICE,02/03/2017,0.00
CHILDREN SAFEGUARDING & ASSESSMENTS,Financial Services,GRO HM PASSPORT OFFICE,02/03/2017,76.65
CHILDREN SAFEGUARDING & ASSESSMENTS,Financial Services,HM PASSPORT OFFICE,02/03/2017,72.50
CHILDREN SAFEGUARDING & ASSESSMENTS,Travel/Subsistence,EUROSTAR INTERNET,02/03/2017,254.00
LIBRARIES & ARCHIVE,Domestic Goods-Other,ARGOS LTD,02/03/2017,19.99
REVENUE & BENEFITS,Legal Services-Other,HMCOURTS-SERVICE.G,02/03/2017,"2,808.00"
REVENUE & BENEFITS,Legal Services-Other,HMCOURTS-SERVICE.G,02/03/2017,"4,638.00"
HOUSING MANAGEMENT SERVICES,Conference Expenses,SAINSBURYS S/MKTS,02/03/2017,115.60
HOUSING MANAGEMENT SERVICES,Stationery,THE POST OFFICE,02/03/2017,2.06
HOUSING MANAGEMENT SERVICES,Use of Public Transport,LUL TICKET MACHINE,02/03/2017,130.00
DAY CENTRES,Financial Services,SAINSBURYS CASH,03/03/2017,200.00
DAY CENTRES,Use of Public Transport,SANTANDER PLC (UK),03/03/2017,250.00
BALANCE SHEET,VAT,DEMCO EUROPE,03/03/2017,62.00
LIBRARIES & ARCHIVE,Furniture-Office Furniture,DEMCO EUROPE,03/03/2017,310.00
INTERNAL AUDIT,Travel/Subsistence,OYSTER AUTOTOPUP,03/03/2017,40.00
INTERNAL AUDIT,Travel/Subsistence,TFL ROAD CHARGE,03/03/2017,11.50
INTERNAL AUDIT,Travel/Subsistence,TFL ROAD CHARGE,03/03/2017,11.50
BALANCE SHEET,VAT,NATIONBUILDER,04/03/2017,0.00
BALANCE SHEET,VAT,NATIONBUILDER,04/03/2017,0.00
BALANCE SHEET,VAT,NATIONBUILDER,04/03/2017,0.00
BALANCE SHEET,VAT,NATIONBUILDER,04/03/2017,0.00
BALANCE SHEET,VAT,TRAINLINE,04/03/2017,0.00
POLICY & COMMUNICATIONS,Travel/Subsistence,TRAINLINE,04/03/2017,33.81
POLICY & COMMUNICATIONS,IT Services,NATIONBUILDER,04/03/2017,48.76
POLICY & COMMUNICATIONS,IT Services,NATIONBUILDER,04/03/2017,48.76
POLICY & COMMUNICATIONS,IT Services,NATIONBUILDER,04/03/2017,49.74
POLICY & COMMUNICATIONS,IT Services,NATIONBUILDER,04/03/2017,49.74
NEIGHBOURHOODS,Domestic Goods-Other,Amazon UK Marketplace,04/03/2017,3.27
NEIGHBOURHOODS,Domestic Goods-Other,Amazon UK Marketplace,04/03/2017,14.97
NEIGHBOURHOODS,Domestic Goods-Other,Amazon UK Marketplace,04/03/2017,32.10
NEIGHBOURHOODS,Facilities-Market Research,Amazon Prime,04/03/2017,7.99
NEIGHBOURHOODS,Facilities-Market Research,Amazon Prime,04/03/2017,7.99
"PLANNING, TRANSPORT & DEVELOPMENT",Travel/Subsistence,OYSTER BUS AUTOTOP,05/03/2017,20.00
"PLANNING, TRANSPORT & DEVELOPMENT",Travel/Subsistence,OYSTER BUS AUTOTOP,05/03/2017,20.00
"PLANNING, TRANSPORT & DEVELOPMENT",Travel/Subsistence,TFL CYCLE HIRE,05/03/2017,2.00
DAY CENTRES,Financial Services,CASH ADVANCE FEE,06/03/2017,5.90
DAY CENTRES,Financial Services,CASH ADVANCE FEE,06/03/2017,7.38
BALANCE SHEET,VAT,NOTTINGHAM BELFRY,06/03/2017,21.83
BALANCE SHEET,VAT,DEMCO EUROPE,06/03/2017,62.00
LIBRARIES & ARCHIVE,Furniture-Office Furniture,DEMCO EUROPE,06/03/2017,-372.00
LIBRARIES & ARCHIVE,Stationery,TIMPSON LTD,06/03/2017,6.00
REVENUE & BENEFITS,Accommodation,NOTTINGHAM BELFRY,06/03/2017,109.17
NEIGHBOURHOODS,Use of Public Transport,LUL TICKET MACHINE,06/03/2017,100.00
SENIOR MANAGEMENT - ADULTS & PUBLIC HEALTH,Conference Expenses,WWW.ADASS.ORG.UK,07/03/2017,499.00
BALANCE SHEET,VAT,THE PLASTIC BOX COMPANY,07/03/2017,3.69
QUALITY ASSURANCE & PERFORMANCE,Travel/Subsistence,LONDON & SOUTH EAS,07/03/2017,55.00
QUALITY ASSURANCE & PERFORMANCE,Travel/Subsistence,OYSTER AUTOTOPUP,07/03/2017,40.00
QUALITY ASSURANCE & PERFORMANCE,Travel/Subsistence,OYSTER AUTOTOPUP,07/03/2017,40.00
QUALITY ASSURANCE & PERFORMANCE,Travel/Subsistence,OYSTER AUTOTOPUP,07/03/2017,40.00
QUALITY ASSURANCE & PERFORMANCE,Travel/Subsistence,OYSTER AUTOTOPUP,07/03/2017,40.00
QUALITY ASSURANCE & PERFORMANCE,Travel/Subsistence,OYSTER BUS AUTOTOP,07/03/2017,40.00
QUALITY ASSURANCE & PERFORMANCE,Travel/Subsistence,OYSTER BUS AUTOTOP,07/03/2017,40.00
QUALITY ASSURANCE & PERFORMANCE,Travel/Subsistence,TRAINLINE,07/03/2017,87.11
QUALITY ASSURANCE & PERFORMANCE,Travel/Subsistence,TRAINLINE,07/03/2017,-20.60
LIBRARIES & ARCHIVE,Stationery,THE PLASTIC BOX COMPANY,07/03/2017,18.46
INTERNAL AUDIT,Travel/Subsistence,TRAINLINE,07/03/2017,73.80
FINANCIAL PLANNING AND MANAGEMENT,Use of Public Transport,LUL TICKET MACHINE,08/03/2017,30.00
HOUSING MANAGEMENT SERVICES,Catering Food & Drink,TESCO STORES 6231,08/03/2017,7.61
DAY CENTRES,Financial Services,LBL NOT PRESENT,09/03/2017,20.33
MENTAL HEALTH,Accommodation,RESERVATION REFUND,09/03/2017,-713.75
MENTAL HEALTH,Accommodation,TRAVELODGE GB0000,09/03/2017,"-1,139.92"
MENTAL HEALTH,Accommodation,TRAVELODGE GB0000,09/03/2017,-205.83
MENTAL HEALTH,Accommodation,TRAVELODGE GB0000,09/03/2017,-285.00
MENTAL HEALTH,Legal Services-Other,HMCOURTS-SERVICE.G,09/03/2017,40.00
MENTAL HEALTH,Travel/Subsistence,LONDON & SOUTH EAS,09/03/2017,37.40
MENTAL HEALTH,Travel/Subsistence,OYSTER AUTOTOPUP,09/03/2017,20.00
BALANCE SHEET,VAT,RESERVATION REFUND,09/03/2017,-142.75
BALANCE SHEET,VAT,TRAVELODGE GB0000,09/03/2017,-227.98
BALANCE SHEET,VAT,TRAVELODGE GB0000,09/03/2017,-41.17
BALANCE SHEET,VAT,TRAVELODGE GB0000,09/03/2017,-57.00
BALANCE SHEET,VAT,IKEA ONLINE,09/03/2017,46.67
BALANCE SHEET,VAT,AMAZON UK RETAIL AMAZON.C,09/03/2017,3.65
BALANCE SHEET,VAT,AMAZON UK RETAIL AMAZON.C,09/03/2017,1.65
BALANCE SHEET,VAT,TRAINLINE,09/03/2017,0.00
CHILDREN LOOKED AFTER,Domestic Goods-Other,ARGOS RETAIL GROUP,09/03/2017,99.99
CHILDREN LOOKED AFTER,Domestic Goods-Other,ARGOS RETAIL GROUP,09/03/2017,323.94
CHILDREN LOOKED AFTER,Domestic Goods-Other,ARGOS RETAIL GROUP,09/03/2017,133.94
CHILDREN LOOKED AFTER,Financial Services,GRO HM PASSPORT OFFICE,09/03/2017,18.50
CHILDREN LOOKED AFTER,Furniture-Domestic Furniture,IKEA ONLINE,09/03/2017,233.33
CHILDREN LOOKED AFTER,Legal Services-General Support,WISEMAN LEE LLP,09/03/2017,995.84
CHILDREN LOOKED AFTER,Organised Activities,ALBAYT RESORT CASARES DEL,09/03/2017,288.31
CHILDREN LOOKED AFTER,Travel/Subsistence,EASYJET ERWS3QD,09/03/2017,125.72
CHILDREN LOOKED AFTER,Travel/Subsistence,EUROSTAR INT ECC,09/03/2017,224.50
CHILDREN LOOKED AFTER,Travel/Subsistence,lastminute com LHR GIB 04,09/03/2017,643.84
QUALITY ASSURANCE & PERFORMANCE,Travel/Subsistence,OYSTER BUS AUTOTOP,09/03/2017,40.00
QUALITY ASSURANCE & PERFORMANCE,Travel/Subsistence,TRAINLINE,09/03/2017,154.03
LIBRARIES & ARCHIVE,Education-Library Books,AMAZON UK RETAIL AMAZON.C,09/03/2017,19.89
LIBRARIES & ARCHIVE,Education-Library Books,AMAZON UK RETAIL AMAZON.C,09/03/2017,7.99
LIBRARIES & ARCHIVE,Education-Library Books,AMAZON UK RETAIL AMAZON.C,09/03/2017,9.58
LIBRARIES & ARCHIVE,Education-Library Books,AMAZON UK RETAIL AMAZON.C,09/03/2017,9.95
LIBRARIES & ARCHIVE,Education-Library Books,AMAZON.CO.UK,09/03/2017,18.32
LIBRARIES & ARCHIVE,Education-Library Books,AMAZON.CO.UK,09/03/2017,2.81
LIBRARIES & ARCHIVE,Education-Library Books,Amazon UK Marketplace,09/03/2017,6.42
LIBRARIES & ARCHIVE,Education-Library Books,Amazon UK Marketplace,09/03/2017,23.10
LIBRARIES & ARCHIVE,Education-Library Books,Amazon UK Marketplace,09/03/2017,31.99
LIBRARIES & ARCHIVE,Education-Library Books,Amazon UK Marketplace,09/03/2017,18.57
LIBRARIES & ARCHIVE,Education-Library Books,Amazon UK Marketplace,09/03/2017,4.50
LIBRARIES & ARCHIVE,Education-Library Books,Amazon UK Marketplace,09/03/2017,17.00
LIBRARIES & ARCHIVE,Education-Library Books,Amazon UK Marketplace,09/03/2017,19.90
LIBRARIES & ARCHIVE,Education-Library Books,Amazon UK Marketplace,09/03/2017,2.81
LIBRARIES & ARCHIVE,Education-Library Books,Amazon UK Marketplace,09/03/2017,2.81
LIBRARIES & ARCHIVE,Education-Library Books,Amazon UK Marketplace,09/03/2017,16.89
LIBRARIES & ARCHIVE,Education-Library Books,Amazon UK Marketplace,09/03/2017,5.62
LIBRARIES & ARCHIVE,Education-Library Books,Amazon UK Marketplace,09/03/2017,2.81
LIBRARIES & ARCHIVE,Education-Library Books,Amazon UK Marketplace,09/03/2017,10.58
LIBRARIES & ARCHIVE,Education-Library Books,Amazon UK Marketplace,09/03/2017,14.60
LIBRARIES & ARCHIVE,Education-Library Books,Amazon UK Retail,09/03/2017,16.18
LIBRARIES & ARCHIVE,Education-Library Books,Amazon UK Retail,09/03/2017,3.99
LIBRARIES & ARCHIVE,Education-Library Books,Amazon UK Retail,09/03/2017,4.68
LIBRARIES & ARCHIVE,Education-Library Books,Amazon UK Retail,09/03/2017,17.48
LIBRARIES & ARCHIVE,Education-Other,Amazon UK Marketplace,09/03/2017,35.80
LIBRARIES & ARCHIVE,Catering Food & Drink,SAINSBURYS SPRMKTS,09/03/2017,7.70
CHIEF EXECUTIVE'S OFFICE,Travel/Subsistence,TRAINLINE,09/03/2017,27.29
INTERNAL AUDIT,Financial Services,GRO HM PASSPORT OFFICE,09/03/2017,-9.25
INTERNAL AUDIT,Financial Services,MANUALLYAPPPYMT 0903,09/03/2017,-10.00
INTERNAL AUDIT,Travel/Subsistence,OYSTER AUTOTOPUP,09/03/2017,40.00
INTERNAL AUDIT,Domestic Goods-Other,AMAZON UK RETAIL AMAZON.C,09/03/2017,18.27
INTERNAL AUDIT,Domestic Goods-Other,AMAZON UK RETAIL AMAZON.C,09/03/2017,8.30
HOUSING MANAGEMENT SERVICES,Books/Publications/Resources,THE POST OFFICE,09/03/2017,425.00
BALANCE SHEET,VAT,LAND REGISTRY,10/03/2017,0.00
BALANCE SHEET,VAT,SCREWFIX DIRECT,10/03/2017,5.83
PROCUREMENT,Education-Other,WWW.CIPS.ORG,10/03/2017,99.96
NEIGHBOURHOODS,Books/Publications/Resources,LAND REGISTRY,10/03/2017,3.00
NEIGHBOURHOODS,Horticultural-Other,SCREWFIX DIRECT,10/03/2017,29.16
BALANCE SHEET,VAT,S LONDON DECORTORS,11/03/2017,12.02
NEIGHBOURHOODS,Building-Paint,S LONDON DECORTORS,11/03/2017,60.09
OTHER - ADULTS,Catering Equipment,WWW.EVENTSUPPLIES.CO.U,13/03/2017,164.16
OTHER - ADULTS,Catering Food & Drink,TESCO STORES 5999,13/03/2017,79.60
OTHER - ADULTS,Catering Food & Drink,TESCO STORES 5999,13/03/2017,52.45
OTHER - ADULTS,Education-Other,Amazon UK Marketplace,13/03/2017,13.97
OTHER - ADULTS,Education-Other,MORLEY COLLEGE LTD,13/03/2017,195.00
BALANCE SHEET,VAT,B & Q 1037,13/03/2017,9.53
BALANCE SHEET,VAT,B & Q 1037,13/03/2017,5.45
LIBRARIES & ARCHIVE,Facilities-Advertising,WH SMITH,13/03/2017,246.30
SCHOOL & EDUCATION IMPROVEMENT SERVICE,Catering Food & Drink,SAINSBURYS S/MKTS,13/03/2017,47.80
NEIGHBOURHOODS,Building-Plumbing,B & Q 1037,13/03/2017,38.11
NEIGHBOURHOODS,Building-Plumbing,B & Q 1037,13/03/2017,21.82
MENTAL HEALTH,Travel/Subsistence,VIRGIN TRAINS,14/03/2017,127.00
BALANCE SHEET,VAT,Amazon UK Marketplace,14/03/2017,30.76
BUSINESS TRANSFORMATION,IT Hardware,Amazon UK Marketplace,14/03/2017,153.79
NEIGHBOURHOODS,Use of Public Transport,LUL TICKET MACHINE,14/03/2017,50.00
MENTAL HEALTH,Accommodation,TRAVELODGE AGENT,15/03/2017,"-1,921.25"
MENTAL HEALTH,Financial Services,LBG - BANK CASHPOINT,15/03/2017,100.00
MENTAL HEALTH,Financial Services-Banking,CASH ADVANCE FEE,15/03/2017,2.95
BALANCE SHEET,VAT,TESCO STORES 4342,15/03/2017,3.50
BALANCE SHEET,VAT,TRAVELODGE AGENT,15/03/2017,-384.25
FINANCIAL PLANNING AND MANAGEMENT,Travel/Subsistence,VIRGIN TRAINS,15/03/2017,157.90
FINANCIAL PLANNING AND MANAGEMENT,Travel/Subsistence,VIRGINTRAINS.CO.UK,15/03/2017,-31.95
HUMAN RESOURCES & ORGANISATIONAL DEVELOPMENT,Financial Services,UKBA5205921109,15/03/2017,199.00
HOUSING MANAGEMENT SERVICES,IT Consumables,TESCO STORES 4342,15/03/2017,17.50
MENTAL HEALTH,Legal Services-Other,HMCOURTS-SERVICE.G,16/03/2017,40.00
BALANCE SHEET,VAT,GERDA SECURITY PRODUCT,16/03/2017,5.23
BALANCE SHEET,VAT,POSTURITE (UK) LTD,16/03/2017,16.12
QUALITY ASSURANCE & PERFORMANCE,Facilities-Market Research,WLY*MYTIMEREWARDSWL.UK,16/03/2017,-20.00
QUALITY ASSURANCE & PERFORMANCE,Travel/Subsistence,OYSTER AUTOTOPUP,16/03/2017,40.00
QUALITY ASSURANCE & PERFORMANCE,Travel/Subsistence,OYSTER AUTOTOPUP,16/03/2017,40.00
QUALITY ASSURANCE & PERFORMANCE,Travel/Subsistence,OYSTER BUS AUTOTOP,16/03/2017,40.00
QUALITY ASSURANCE & PERFORMANCE,Travel/Subsistence,TRAINLINE,16/03/2017,34.08
LIBRARIES & ARCHIVE,Education-Library Books,AMAZON UK RETAIL AMAZON.C,16/03/2017,36.62
LIBRARIES & ARCHIVE,Education-Library Books,AMAZON UK RETAIL AMAZON.C,16/03/2017,14.13
LIBRARIES & ARCHIVE,Education-Library Books,Amazon UK Marketplace,16/03/2017,18.11
LIBRARIES & ARCHIVE,Education-Library Books,Amazon UK Marketplace,16/03/2017,12.80
LIBRARIES & ARCHIVE,Education-Library Books,Amazon UK Marketplace,16/03/2017,6.72
LIBRARIES & ARCHIVE,Education-Library Books,Amazon UK Retail,16/03/2017,22.81
REVENUE & BENEFITS,Use of Public Transport,OYSTER BUS AUTOTOP,16/03/2017,20.00
HOUSING MANAGEMENT SERVICES,Building-Timber,B & Q 1037,16/03/2017,30.52
HOUSING MANAGEMENT SERVICES,Financial Services,GRO HM PASSPORT OFFICE,16/03/2017,0.00
HOUSING MANAGEMENT SERVICES,Financial Services,GRO HM PASSPORT OFFICE,16/03/2017,-9.25
HOUSING MANAGEMENT SERVICES,Financial Services,GRO HM PASSPORT OFFICE,16/03/2017,9.25
HOUSING MANAGEMENT SERVICES,Financial Services,GRO HM PASSPORT OFFICE,16/03/2017,18.50
HOUSING MANAGEMENT SERVICES,Furniture-Office Furniture,POSTURITE (UK) LTD,16/03/2017,80.61
HOUSING MANAGEMENT SERVICES,Stationery,MANUALLYAPPPYMT 0903,16/03/2017,-30.00
HOUSING MANAGEMENT SERVICES,Travel/Subsistence,LUL TICKET MACHINE,16/03/2017,105.00
HOUSING MANAGEMENT SERVICES,Building-Tools,GERDA SECURITY PRODUCT,16/03/2017,26.16
FINANCIAL PLANNING AND MANAGEMENT,Financial Services,LAND REGISTRY,21/03/2017,3.00
INTERNAL AUDIT,Financial Services,GRO HM PASSPORT OFFICE,29/03/2017,46.25
INTERNAL AUDIT,Travel/Subsistence,OYSTER AUTOTOPUP,29/03/2017,40.00
INTERNAL AUDIT,Travel/Subsistence,OYSTER AUTOTOPUP,29/03/2017,40.00
INTERNAL AUDIT,Travel/Subsistence,OYSTER BUS AUTOTOP,29/03/2017,40.00
